Workbook

Sheet Obsah
C3: B1 Vývoj českého školství jako celku
C4: Zdroje dat jsou uvedeny v zápatí jednotlivých tabulek
E6: Obsah
C8: Tabulka 1 | E8: =B1.1!H4&" "&B1.1!D5 -> Školství celkem – počty škol ve školním/akademickém roce 2004/05 až 2013/14 – podle druhu školy
C10: Tabulka 2 | E10: =B1.2!H4&" "&B1.2!D5 -> Školství celkem – počty dětí/žáků/studentů ve školním/akademickém roce 2004/05 až 2013/14 – podle druhu školy
C12: Tabulka 3 | E12: =B1.3!H4&" "&B1.3!D5 -> Školství celkem – počty cizinců ve školním/akademickém roce 2004/05 až 2013/14 – podle druhu školy
C14: Tabulka 4 | E14: =B1.4!H4&" "&B1.4!D5 -> Školství celkem – přepočtené počty učitelů/akademických pracovníků/nekvalifikovaných ve školním/akademickém roce 2004/05 až 2013/14 – podle druhu školy
C16: Tabulka 5 | E16: =B1.5!H4&" "&B1.5!D5 -> Školství celkem – veřejné výdaje na školství v běžných cenách v letech 2004 až 2013
C18: Tabulka 6 | E18: =B1.6!H4&" "&B1.6!D5 -> Školství celkem – veřejné výdaje na školství ve stálých cenách roku 2005 v letech 2004 až 2013
C20: Tabulka 7 | E20: =B1.7!H4&" "&B1.7!D5 -> Školství celkem – veřejné výdaje na školství v běžných cenách v letech 2004 až 2013 – podle jednotlivých kapitol státního rozpočtu
C22: Tabulka 8 | E22: =B1.8!H4&" "&B1.8!D5 -> Školství celkem – veřejné výdaje v běžných cenách v letech 2004 až 2013 – podle druhu/typu školy/zařízení
C24: Tabulka 9 | E24: =B1.9!H4&" "&B1.9!D5 -> Školství celkem – veřejné výdaje ve stálých cenách roku 2005 v letech 2004 až 2013 – podle druhu/typu školy/zařízení
C26: Tabulka 10 | E26: =B1.10!H4&" "&B1.10!D5 -> Školství celkem – jednotkové výdaje na žáka/studenta v běžných cenách v letech 2004 až 2013 – podle druhu/typu školy
C28: Tabulka 11 | E28: =B1.11!H4&" "&B1.11!D5 -> Školství celkem – jednotkové výdaje na žáka/studenta ve stálých cenách roku 2005 v letech 2004 až 2013 – podle druhu/typu školy
C30: Tabulka 12 | E30: =B1.12!H4&" "&B1.12!D5 -> Školství celkem, neveřejné školy a školská zařízení – výše dotací z rozpočtu kapitoly 333-MŠMT v letech 2004 až 2013 – podle zřizovatele
C32: Tabulka 13 | E32: =B1.13!H4&" "&B1.13!D5 -> Školství celkem – přepočtené počty zaměstnanců v letech 2004 až 2013
C34: Tabulka 14 | E34: =B1.14!$H$4&" "&B1.14!$D$5 -> Školství celkem – průměrné měsíční mzdy v letech 2004 až 2013
D35: Obrazová příloha
C37: Graf 1 | E37: ='GB1'!$H$4&" "&'GB1'!$D$5 -> Školství celkem – počet škol ve školním roce 2004/05 až 2013/14 – podle druhu školy
C39: Graf 2 | E39: ='GB2'!$G$4&" "&'GB2'!$D$5 -> Školství celkem – struktura dětí/žáků/studentů ve školním roce 2004/05 až 2013/14 – podle druhu školy
C41: Graf 3 | E41: ='GB3'!$G$4&" "&'GB3'!$D$5 -> Školství celkem – struktura veřejných výdajů (v %) v letech 2004 až 2013
C43: Graf 4 | E43: ='GB4'!$G$4&" "&'GB4'!$D$5 -> Školství celkem – jednotkové výdaje na dítě, žáka, studenta v tis. Kč v letech 2004 až 2013 – podle úrovně vzdělávání
C45: Graf 5 | E45: ='GB5'!$H$4&" "&'GB5'!$D$5 -> Školství celkem – průměrné nominální měsíční mzdy v letech 2004 až 2013
C47: Graf 6 | E47: ='GB6'!$H$4&" "&'GB6'!$D$5 -> Školství celkem – průměrné reálné měsíční mzdy v letech 2004 až 2013

Sheet B1.1
D4: Tab. B1.1: | H4: Školství celkem – počty škol
D5: ve školním/akademickém roce 2004/05 až 2013/14 – podle druhu školy
D7: Druh školy | J7: 2003/04 | K7: 2004/05 | L7: 2005/06 | M7: 2006/07 | N7: 2007/08 | O7: 2008/09 | P7: 2009/10 | Q7: 2010/11 | R7: 2011/12 | S7: 2012/13 | T7: 2013/14
J11: 1) | K11: 1)
E12: Celkem regionální školství2) | J12: . | K12: . | L12: 8681 | M12: 8591 | N12: 8541 | O12: 8493 | P12: 8472 | Q12: 8474 | R12: 8490 | S12: 8426 | T12: 8442
E13: v tom | F13: mateřské školy | J13: 5067 | K13: 4994 | L13: 4834 | M13: 4815 | N13: 4808 | O13: 4809 | P13: 4826 | Q13: 4877 | R13: 4931 | S13: 5011 | T13: 5085
F14: základní školy | J14: 4838 | K14: 4765 | L14: 4474 | M14: 4197 | N14: 4155 | O14: 4133 | P14: 4125 | Q14: 4120 | R14: 4111 | S14: 4095 | T14: 4095
F15: z toho | G15: 1. stupeň3) | J15: . | K15: . | L15: 4435 | M15: 4155 | N15: 4129 | O15: 4105 | P15: 4095 | Q15: 4093 | R15: 4089 | S15: 4074 | T15: 4074
G16: 2. stupeň3) | J16: . | K16: . | L16: 3052 | M16: 2796 | N16: 2775 | O16: 2760 | P16: 2755 | Q16: 2748 | R16: 2738 | S16: 2718 | T16: 2705
F17: střední školy | J17: 2006 | K17: 1966 | L17: 2004 | M17: 1482 | N17: 1447 | O17: 1438 | P17: 1433 | Q17: 1423 | R17: 1393 | S17: 1347 | T17: 1331
F18: konzervatoře | J18: 17 | K18: 17 | L18: 17 | M18: 18 | N18: 19 | O18: 18 | P18: 17 | Q18: 18 | R18: 18 | S18: 18 | T18: 18
F19: vyšší odborné školy | J19: 169 | K19: 174 | L19: 176 | M19: 174 | N19: 177 | O19: 184 | P19: 184 | Q19: 182 | R19: 180 | S19: 178 | T19: 174
E20: Veřejné a soukromé vysoké školy | J20: 52 | K20: 60 | L20: 64 | M20: 63 | N20: 68 | O20: 71 | P20: 71 | Q20: 70 | R20: 71 | S20: 70 | T20: 69
D21: Komentáře: | T21: Zdroj: databáze MŠMT
D22: 1) | E22: Do školního roku 2004/05 jsou MŠ a ZŠ započteny podle počtu jednotlivých pracovišť, od školního roku 2005/06 je uveden počet škol bez ohledu na počet těchto pracovišť. U středních škol, konzervatoří a VOŠ došlo k této změně vykazování o rok později.
D23: 2) | E23: Počet právních subjektů vykonávajících činnost školy.
D24: 3) | E24: Ve školním roce 2004/05 údaje za jednotlivé stupně ZŠ neuvádíme, neboť systém ročníků na základních školách speciálních (do školního roku 2004/05 v pomocných školách) byl jiný a jednoznačně nelze školy, třídy a žáky k tomuto stupni přiřadit.

Sheet B1.2
D4: Tab. B1.2: | H4: Školství celkem – počty dětí/žáků/studentů
D5: ve školním/akademickém roce 2004/05 až 2013/14 – podle druhu školy
D7: Druh školy | J7: 2003/04 | K7: 2004/05 | L7: 2005/06 | M7: 2006/07 | N7: 2007/08 | O7: 2008/09 | P7: 2009/10 | Q7: 2010/11 | R7: 2011/12 | S7: 2012/13 | T7: 2013/14
E12: Školství celkem | J12: =J13+J21 -> 2131498 | K12: =K13+K21 -> 2115427 | L12: 2098122 | M12: 2085877 | N12: 2081642 | O12: 2081575 | P12: 2085917 | Q12: 2080368 | R12: 2063374 | S12: =S13+S21 -> 2046726 | T12: 2040340
E13: Celkem regionální školství1) | J13: 1887775 | K13: 1850642 | L13: 1808650 | M13: 1769701 | N13: 1737704 | O13: 1713523 | P13: 1696911 | Q13: 1684376 | R13: 1671275 | S13: =S14+S15+S18+S19+S20 -> 1665679 | T13: =T14+T15+T18+T19+T20 -> 1672036
E14: v tom | F14: mateřské školy | J14: 284166 | K14: 284218 | L14: 282183 | M14: 285419 | N14: 291194 | O14: 301620 | P14: 314008 | Q14: 328612 | R14: 342521 | S14: 354340 | T14: 363568
F15: základní školy | J15: 992770 | K15: 953655 | L15: 916575 | M15: 876513 | N15: 844863 | O15: 816015 | P15: 794459 | Q15: 789486 | R15: 794642 | S15: 807950 | T15: 827654
F16: z toho | G16: 1. stupeň2) | J16: . | K16: . | L16: 473269 | M16: 462820 | N16: 458046 | O16: 458198 | P16: 460754 | Q16: 465380 | R16: 474327 | S16: 488106 | T16: 505983
G17: 2. stupeň2) | J17: . | K17: . | L17: 443306 | M17: 413693 | N17: 386817 | O17: 357817 | P17: 333705 | Q17: 324106 | R17: 320315 | S17: 319844 | T17: 321671
F18: střední školy | J18: 576615 | K18: 579505 | L18: 577605 | M18: 576585 | N18: 569267 | O18: 564326 | P18: 556260 | Q18: 532918 | R18: 501220 | S18: 470754 | T18: 448792
F19: konzervatoře | J19: 3543 | K19: 3505 | L19: 3495 | M19: 3534 | N19: 3606 | O19: 3535 | P19: 3435 | Q19: 3560 | R19: 3557 | S19: 3655 | T19: 3690
F20: vyšší odborné školy | J20: 30681 | K20: 29759 | L20: 28792 | M20: 27650 | N20: 28774 | O20: 28027 | P20: 28749 | Q20: 29800 | R20: 29335 | S20: 28980 | T20: 28332
E21: Veřejné a soukromé vysoké školy2) | J21: 243723 | K21: 264785 | L21: 289472 | M21: 316176 | N21: 343938 | O21: 368052 | P21: 389006 | Q21: 395992 | R21: 392099 | S21: 381047 | T21: 368304
D22: Z toho dívky/ženy
E23: Školství celkem | J23: =J24+J32 -> 1045060 | K23: =K24+K32 -> 1042809 | L23: 1037199 | M23: 1035558 | N23: 1038530 | O23: 1043677 | P23: 1048372 | Q23: 1046883 | R23: 1038768 | S23: =S24+S32 -> 1031180 | T23: 1026192
E24: Celkem regionální školství1) | J24: 924356 | K24: 908094 | L24: 886522 | M24: 867709 | N24: 852673 | O24: 841083 | P24: 831991 | Q24: 825353 | R24: 819122 | S24: =S25+S26+S29+S30+S31 -> 816918 | T24: =T25+T26+T29+T30+T31 -> 819363
E25: v tom | F25: mateřské školy | J25: 135892 | K25: 136002 | L25: 134727 | M25: 136604 | N25: 139808 | O25: 144502 | P25: 150613 | Q25: 157799 | R25: 164387 | S25: 170705 | T25: 175049
F26: základní školy | J26: 481252 | K26: 461978 | L26: 442206 | M26: 422041 | N26: 406776 | O26: 392745 | P26: 382748 | Q26: 381028 | R26: 384212 | S26: 391115 | T26: 400894
F27: z toho | G27: 1. stupeň | J27: . | K27: . | L27: 229244 | M27: 224264 | N27: 221913 | O27: 222245 | P27: 223589 | Q27: 225831 | R27: 230709 | S27: 237601 | T27: 246310
G28: 2. stupeň | J28: . | K28: . | L28: 212962 | M28: 197777 | N28: 184863 | O28: 170500 | P28: 159159 | Q28: 155197 | R28: 153503 | S28: 153514 | T28: 154584
F29: střední školy | J29: 284453 | K29: 287383 | L29: 287263 | M29: 287185 | N29: 283399 | O29: 281527 | P29: 275829 | Q29: 262889 | R29: 247402 | S29: 232209 | T29: 220830
F30: konzervatoře | J30: 2080 | K30: 2063 | L30: 2061 | M30: 2091 | N30: 2161 | O30: 2141 | P30: 2099 | Q30: 2176 | R30: 2171 | S30: 2247 | T30: 2285
F31: vyšší odborné školy | J31: 20679 | K31: 20668 | L31: 20265 | M31: 19788 | N31: 20529 | O31: 20168 | P31: 20702 | Q31: 21461 | R31: 20950 | S31: 20642 | T31: 20305
E32: Veřejné a soukromé vysoké školy2) | J32: 120704 | K32: 134715 | L32: 150677 | M32: 167849 | N32: 185857 | O32: 202594 | P32: 216381 | Q32: 221530 | R32: 219646 | S32: 214262 | T32: 206829
D33: Komentáře: | T33: Zdroj: databáze MŠMT
D34: 1) | E34: Údaje za všechny druhy škol v regionálním školství jsou za počty studií k 30. 9. daného roku.
D35: 2) | E35: Ve školním roce 2004/05 údaje za jednotlivé stupně ZŠ neuvádíme, neboť systém ročníků na základních školách speciálních (do školního roku 2004/05 v pomocných školách) byl jiný a jednoznačně nelze školy, třídy a žáky k tomuto stupni přiřadit.
D36: 3) | E36: Údaje za VŠ jsou ve fyzických osobách k 31. 12. daného roku.

Sheet B1.3
D4: Tab. B1.3: | H4: Školství celkem – počty cizinců
D5: ve školním/akademickém roce 2004/05 až 2013/14 – podle druhu školy
D7: Druh školy | J7: 2003/04 | K7: 2004/05 | L7: 2005/06 | M7: 2006/07 | N7: 2007/08 | O7: 2008/09 | P7: 2009/10 | Q7: 2010/11 | R7: 2011/12 | S7: 2012/13 | T7: 2013/14
E12: Školství celkem | J12: =J13+J19 -> 33348 | K12: =K13+K19 -> 37124 | L12: 41736 | M12: 45223 | N12: 49839 | O12: 54831 | P12: 60635 | Q12: 64893 | R12: 67307 | S12: =S13+S19 -> 69287 | T12: 72131
E13: Celkem regionální školství1) | J13: 20268 | K13: =SUM(K14:K18) -> 20042 | L13: =SUM(L14:L18) -> 20838 | M13: 21346 | N13: 22786 | O13: 24690 | P13: 26169 | Q13: 27352 | R13: 28525 | S13: 29688 | T13: =SUM(T14:T18) -> 31295
E14: v tom | F14: mateřské školy | J14: 3252 | K14: 3244 | L14: 3213 | M14: 2811 | N14: 3078 | O14: 3535 | P14: 3963 | Q14: 4223 | R14: 4714 | S14: 5434 | T14: 6307
F15: základní školy | J15: 12973 | K15: 12113 | L15: 12279 | M15: 12504 | N15: 12963 | O15: 13583 | P15: 13839 | Q15: 14109 | R15: 14344 | S15: 14551 | T15: 15109
F16: střední školy | J16: 3584 | K16: 4250 | L16: 4940 | M16: 5615 | N16: 6314 | O16: 7134 | P16: 7900 | Q16: 8458 | R16: 8852 | S16: 9024 | T16: 9147
F17: konzervatoře | J17: 74 | K17: 82 | L17: 93 | M17: 112 | N17: 110 | O17: 131 | P17: 118 | Q17: 136 | R17: 151 | S17: 169 | T17: 185
F18: vyšší odborné školy | J18: 385 | K18: 353 | L18: 313 | M18: 304 | N18: 321 | O18: 307 | P18: 349 | Q18: 426 | R18: 464 | S18: 510 | T18: 547
E19: Veřejné a soukromé vysoké školy2) | J19: 13080 | K19: 17082 | L19: 20898 | M19: 23877 | N19: 27053 | O19: 30141 | P19: 34466 | Q19: 37541 | R19: 38782 | S19: 39599 | T19: 40836
D20: Z toho dívky/ženy
E21: Školství celkem | J21: =J22+J28 -> 16332 | K21: 18307 | L21: 20687 | M21: 22545 | N21: 24994 | O21: 27637 | P21: 30806 | Q21: 33270 | R21: 34442 | S21: =S22+S28 -> 35563 | T21: 37114
E22: Celkem regionální školství1) | J22: 9749 | K22: =SUM(K23:K27) -> 9665 | L22: =SUM(L23:L27) -> 10043 | M22: 10291 | N22: 11068 | O22: 12015 | P22: 12710 | Q22: 13437 | R22: 13931 | S22: 14591 | T22: =SUM(T23:T27) -> 15380
E23: v tom | F23: mateřské školy | J23: 1538 | K23: 1500 | L23: 1521 | M23: 1326 | N23: 1469 | O23: 1700 | P23: 1894 | Q23: 2053 | R23: 2235 | S23: 2598 | T23: 3011
F24: základní školy | J24: 6155 | K24: 5798 | L24: 5839 | M24: 5916 | N24: 6175 | O24: 6477 | P24: 6590 | Q24: 6822 | R24: 6886 | S24: 7051 | T24: 7305
F25: střední školy | J25: 1767 | K25: 2103 | L25: 2432 | M25: 2779 | N25: 3147 | O25: 3566 | P25: 3929 | Q25: 4207 | R25: 4426 | S25: 4497 | T25: 4566
F26: konzervatoře | J26: 46 | K26: 42 | L26: 48 | M26: 58 | N26: 53 | O26: 66 | P26: 61 | Q26: 77 | R26: 87 | S26: 99 | T26: 111
F27: vyšší odborné školy | J27: 243 | K27: 222 | L27: 203 | M27: 212 | N27: 224 | O27: 206 | P27: 236 | Q27: 278 | R27: 297 | S27: 346 | T27: 387
E28: Veřejné a soukromé vysoké školy2) | J28: 6583 | K28: 8642 | L28: 10644 | M28: 12254 | N28: 13926 | O28: 15622 | P28: 18096 | Q28: 19833 | R28: 20511 | S28: 20972 | T28: 21734
D29: Komentáře: | T29: Zdroj: databáze MŠMT
D30: 1) | E30: Údaje za všechny druhy škol v regionálním školství jsou za počty studií k 30. 9. daného roku.
D31: 2) | E31: Údaje za VŠ jsou ve fyzických osobách k 31. 12. daného roku.

Sheet B1.4
D4: Tab. B1.4: | H4: Školství celkem – přepočtené počty učitelů/akademických pracovníků/nekvalifikovaných
D5: ve školním/akademickém roce 2004/05 až 2013/14 – podle druhu školy
D7: Druh školy | J7: 2003/04 | K7: 2004/05 | L7: 2005/06 | M7: 2006/07 | N7: 2007/08 | O7: 2008/09 | P7: 2009/10 | Q7: 2010/11 | R7: 2011/12 | S7: 2012/13 | T7: 2013/14
J11: 1) | K11: 1)
E12: Celkem regionální školství | J12: . | K12: . | L12: =L13+L14+L17+L18+L19 -> 135936.5 | M12: =M13+M14+M17+M18+M19 -> 135353.4 | N12: 133783.1 | O12: 132610.7 | P12: 132294.5 | Q12: 132015.7 | R12: 131482.6 | S12: 130199.5 | T12: 130006.6
E13: v tom | F13: mateřské školy | J13: . | K13: . | L13: 22484.6 | M13: 22367.7 | N13: 22744.3 | O13: 23567.8 | P13: 24584.3 | Q13: 25736.8 | R13: 26780.6 | S13: 27739.2 | T13: 28583
F14: základní školy | J14: . | K14: . | L14: 63157.6 | M14: 62657.6 | N14: 61069.2 | O14: 59492.3 | P14: 58417.3 | Q14: 58023 | R14: 57814.8 | S14: 57668.9 | T14: =T15+T16 -> 58269.1
F15: v tom | G15: 1. stupeň | J15: . | K15: . | L15: 27586 | M15: 27727.1 | N15: 27520 | O15: 27529.2 | P15: 27634.9 | Q15: 27796 | R15: 28114.6 | S15: 28374.9 | T15: 29025.1
G16: 2. stupeň | J16: . | K16: . | L16: 35571.6 | M16: 34930.5 | N16: 33453.2 | O16: 31963.1 | P16: 30782.4 | Q16: 30227 | R16: 29700.2 | S16: 29294 | T16: 29244
F17: střední školy | J17: . | K17: . | L17: 47352.1 | M17: 47452 | N17: 47124.3 | O17: 46734.9 | P17: 46488.8 | Q17: 45384.9 | R17: 43875.8 | S17: 41788.8 | T17: 40214.1
F18: konzervatoře | J18: . | K18: . | L18: 1019.6 | M18: 1083.9 | N18: 1046.3 | O18: 1000.5 | P18: 997.9 | Q18: 1030 | R18: 1120.7 | S18: 1126.6 | T18: 1157.9
F19: vyšší odborné školy | J19: . | K19: . | L19: 1922.6 | M19: 1792.2 | N19: 1799 | O19: 1815.2 | P19: 1806.2 | Q19: 1841 | R19: 1890.7 | S19: 1876 | T19: 1782.5
E20: Veřejné vysoké školy | J20: 14221 | K20: 14623 | L20: 15015.9 | M20: 15524.186 | N20: 16525.9 | O20: 16976.598 | P20: 17271.643 | Q20: 16990.582 | R20: 16418.91 | S20: 15449.309 | T20: 15026.07
D21: z toho nekvalifikovaní
E22: Celkem regionální školství | J22: . | K22: . | L22: =L23+L24+L27+L28+L29 -> 18494.4 | M22: =M23+M24+M27+M28+M29 -> 18291.7 | N22: 18106.7 | O22: 17345.2 | P22: 16883.4 | Q22: 16148.4 | R22: 18023.2 | S22: 14933.7 | T22: 13386.7
E23: v tom | F23: mateřské školy | J23: . | K23: . | L23: 1429.4 | M23: 1545.9 | N23: 1558.1 | O23: 1864.3 | P23: 2183.5 | Q23: 2633.9 | R23: 3134.3 | S23: 2898.8 | T23: 2862.5
F24: základní školy | J24: . | K24: . | L24: =L25+L26 -> 9817.9 | M24: =M25+M26 -> 9564.6 | N24: =N25+N26 -> 9590.3 | O24: =O25+O26 -> 8943.9 | P24: =P25+P26 -> 8272.4 | Q24: 7650 | R24: 8157.5 | S24: 6834.4 | T24: =T25+T26 -> 6319.7
F25: v tom | G25: 1. stupeň | J25: . | K25: . | L25: 4824.8 | M25: 4538.2 | N25: 4441.1 | O25: 4193.4 | P25: 3910.1 | Q25: 3676.4 | R25: 3983.5 | S25: 3344.5 | T25: 3199.6
G26: 2. stupeň | J26: . | K26: . | L26: 4993.1 | M26: 5026.4 | N26: 5149.2 | O26: 4750.5 | P26: 4362.3 | Q26: 3973.6 | R26: 4174 | S26: 3489.9 | T26: 3120.1
F27: střední školy | J27: . | K27: . | L27: 7126.5 | M27: 7056 | N27: 6849.8 | O27: 6428.3 | P27: 6324.4 | Q27: 5758.6 | R27: 6580.3 | S27: 5093.7 | T27: 4131.2
F28: konzervatoře | J28: . | K28: . | L28: 20.8 | M28: 14.1 | N28: 8.7 | O28: 10.3 | P28: 7.1 | Q28: 11.2 | R28: 26.1 | S28: 8.5 | T28: 11.3
F29: vyšší odborné školy | J29: . | K29: . | L29: 99.8 | M29: 111.1 | N29: 99.8 | O29: 98.4 | P29: 96 | Q29: 94.7 | R29: 125 | S29: 98.3 | T29: 62
E30: Veřejné vysoké školy | J30: . | K30: . | L30: . | M30: . | N30: . | O30: . | P30: . | Q30: . | R30: . | S30: . | T30: .
D31: Komentáře: | T31: Zdroj: databáze MŠMT
D32: 1) | E32: Ve školním roce 2004/05 nejsou údaje o učitelích dostupné v potřebném členění. Od roku 2005/06 jsou údaje za MŠ a ZŠ včetně škol při zdravotnických zařízeních.

Sheet B1.5
D4: Tab. B1.5: | H4: Školství celkem – veřejné výdaje na školství v běžných cenách
D5: v letech 2004 až 2013
D6: Včetně výdajů Ministerstva obrany. | T6: v mld. Kč
J7: 2003 | K7: 2004 | L7: 2005 | M7: 2006 | N7: 2007 | O7: 2008 | P7: 2009 | Q7: 2010 | R7: 2011 | S7: 2012 | T7: 2013
J11: 1) | K11: 1) | L11: 1) | M11: 1) | N11: 1) | O11: 1),2)
E12: Hrubý domácí produkt v běžných cenách | J12: 2688.107 | K12: 2929.172 | L12: 3116.056 | M12: 3352.599 | N12: 3662.573 | O12: 3848.411 | P12: 3758.979 | Q12: 3790.88 | R12: 3823.401 | S12: 3845.926 | T12: 3883.78
E13: Výdaje na školství celkem | J13: 115.8565944 | K13: 123.0416334 | L13: 130.3191627 | M13: 142.8340917 | N13: 152.9877688 | O13: 151.0030003 | P13: 163.9430102 | Q13: 162.9650589 | R13: 173.7219689 | S13: 171.3698698 | T13: 172.8051743
E14: Výdaje na školství v % HDP | J14: =J13/J12 -> 0.04309969597 | K14: =K13/K12 -> 0.04200560208 | L14: 0.04182182948 | M14: 0.04260398924 | N14: 0.0417705719 | O14: 0.03923775301 | P14: 0.04361370739 | Q14: 0.04298871472 | R14: 0.04543650245 | S14: 0.0445588058 | T14: 0.04449406873
E15: Výdaje státního rozpočtu | J15: 808.718 | K15: 862.8916749 | L15: 922.7980182 | M15: 1020.640224 | N15: 1092.274577 | O15: 1083.943645 | P15: 1167.009054 | Q15: 1156.793484 | R15: 1155.526205 | S15: 1152.386677 | T15: 1173.127823
D16: Index spotřebitelských cen a meziroční inflace
E17: Index spotřebitelských cen (rok 2005 = 100) | J17: 95.5 | K17: 98.1 | L17: 100 | M17: 102.5 | N17: 105.4 | O17: 112.1 | P17: 113.3 | Q17: 114.9 | R17: 117.1 | S17: 121 | T17: 122.7
E18: Meziroční inflace | J18: 0.001 | K18: 0.028 | L18: 0.019 | M18: 0.025 | N18: 0.028 | O18: 0.063 | P18: 0.01 | Q18: 0.015 | R18: 0.019 | S18: 0.033 | T18: 0.014
D19: Komentáře: | T19: Zdroj: Státní závěrečný účet ČR; ZÚ - kapitola 333-MŠMT; 700-Obce a DSO, KÚ; ZÚ ostatních resortů; ČSÚ
D20: 1) | E20: Z důvodu konsolidace nejsou zahrnuty z daných tříd následující položky: 5321, 5323,5329, 5344, 5345, 5349, 5366, 5641, 5642, 5649, 6341, 6342, 6349, 6441, 6442, 6449.
D21: 2) | E21: Meziroční snížení výdajů v roce 2008 je dáno aplikací zákona č. 26/2008 Sb. a z něj vyplývajícím nepřeváděním nevyčerpaných prostředků OSS do rezervních fondů, a tudíž jejich nezahrnutím do čerpání.

Sheet B1.6
D4: Tab. B1.6: | H4: Školství celkem – veřejné výdaje na školství ve stálých cenách roku 2005
D5: v letech 2004 až 2013
D6: Včetně výdajů Ministerstva obrany. | T6: v mld. Kč
J7: 2003 | K7: 2004 | L7: 2005 | M7: 2006 | N7: 2007 | O7: 2008 | P7: 2009 | Q7: 2010 | R7: 2011 | S7: 2012 | T7: 2013
J11: 1) | K11: 1) | L11: 1) | M11: 1) | N11: 1) | O11: 1),2)
E12: Výdaje státního rozpočtu | J12: =B1.5!J15/B1.5!J17*100 -> 846.8251309 | K12: =B1.5!K15/B1.5!K17*100 -> 879.6041538 | L12: =B1.5!L15/B1.5!L17*100 -> 922.7980182 | M12: =B1.5!M15/B1.5!M17*100 -> 995.7465595 | N12: =B1.5!N15/B1.5!N17*100 -> 1036.31364 | O12: =B1.5!O15/B1.5!O17*100 -> 966.9434834 | P12: =B1.5!P15/B1.5!P17*100 -> 1030.016818 | Q12: =B1.5!Q15/B1.5!Q17*100 -> 1006.78284 | R12: =B1.5!R15/B1.5!R17*100 -> 986.7858281 | S12: =B1.5!S15/B1.5!S17*100 -> 952.3856838 | T12: =B1.5!T15/B1.5!T17*100 -> 956.0943953
E13: Výdaje na školství celkem | J13: =B1.5!J13/B1.5!J17*100 -> 121.3158057 | K13: =B1.5!K13/B1.5!K17*100 -> 125.4247028 | L13: =B1.5!L13/B1.5!L17*100 -> 130.3191627 | M13: =B1.5!M13/B1.5!M17*100 -> 139.3503334 | N13: =B1.5!N13/B1.5!N17*100 -> 145.1496858 | O13: =B1.5!O13/B1.5!O17*100 -> 134.7038361 | P13: =B1.5!P13/B1.5!P17*100 -> 144.6981555 | Q13: =B1.5!Q13/B1.5!Q17*100 -> 141.8320791 | R13: =B1.5!R13/B1.5!R17*100 -> 148.3535174 | S13: =B1.5!S13/B1.5!S17*100 -> 141.6279915 | T13: =B1.5!T13/B1.5!T17*100 -> 140.8355128
D14: Komentáře: | T14: Zdroj: Státní závěrečný účet ČR; ZÚ - kapitola 333-MŠMT; 700-Obce a DSO, KÚ; ZÚ ostatních resortů; ČSÚ
D15: 1) | E15: Z důvodu konsolidace nejsou zahrnuty z daných tříd následující položky: 5321, 5323,5329, 5344, 5345, 5349, 5366, 5641, 5642, 5649, 6341, 6342, 6349, 6441, 6442, 6449.
D16: 2) | E16: Meziroční snížení výdajů v roce 2008 je dáno aplikací zákona č. 26/2008 Sb. a z něj vyplývajícím nepřeváděním nevyčerpaných prostředků OSS do rezervních fondů, a tudíž jejich nezahrnutím do čerpání.

Sheet B1.7
D4: Tab. B1.7: | H4: Školství celkem – veřejné výdaje na školství v běžných cenách
D5: v letech 2004 až 2013 – podle jednotlivých kapitol státního rozpočtu
D6: Včetně výdajů Ministerstva obrany. | T6: v mld. Kč
J7: 2003 | K7: 2004 | L7: 2005 | M7: 2006 | N7: 2007 | O7: 2008 | P7: 2009 | Q7: 2010 | R7: 2011 | S7: 2012 | T7: 2013
O11: 2)
E12: z rozpočtu | F12: MŠMT (kapitola 333) | J12: 90.55035892 | K12: 95.59806376 | L12: 102.5772496 | M12: 110.8819227 | N12: 123.1991543 | O12: 119.3826984 | P12: 127.6495967 | Q12: 124.266208 | R12: 138.9591331 | S12: 138.1844807 | T12: 138.4428364
F13: obcí a DSO (kapitola 700) | J13: 56.46254528 | K13: 59.34352732 | L13: 26.26204 | M13: 30.32103758 | N13: 28.94832135 | O13: 31.88567351 | P13: 35.95729478 | Q13: 36.79208926 | R13: 37.10872717 | S13: 34.24249036 | T13: 35.2243727
F14: krajských úřadů (kapitola 700) | J14: 30.18948716 | K14: 32.01729367 | L14: 68.41896678 | M14: 72.73313529 | N14: 75.25639084 | O14: 77.53711407 | P14: 82.64667006 | Q14: 81.00950021 | R14: 81.57184035 | S14: 83.06004284 | T14: 83.05081486
F15: transfery z MŠMT na KÚ a magistráty1) | J15: -62.95461886 | K15: -65.61084508 | L15: -68.7040819 | M15: -72.68765616 | N15: -75.81887675 | O15: -79.00575911 | P15: -83.45005755 | Q15: -80.15712342 | R15: -84.87090478 | S15: -85.11274843 | T15: -84.99306122
F16: Ministerstva obrany (kapitola 307)3) | J16: 1.60087268 | K16: 1.69042778 | L16: 1.76198821 | M16: 1.58250428 | N16: 1.40277912 | O16: 1.20327347 | P16: 1.13950619 | Q16: 1.09025692 | R16: 0.95317303 | S16: 0.99560431 | T16: 1.080211493
D17: Komentáře: | T17: Zdroj: Státní závěrečný účet ČR; ZÚ – kapitola 333-MŠMT; 700-Obce a DSO, KÚ; ZÚ ostatních resortů; ČSÚ
D18: 1) | E18: Výdaje na regionální školství, které byly převedeny transferem z rozpočtu kapitoly 333-MŠMT do rozpočtů KÚ a magistrátů, byly vykázány jak v rozpočtu MŠMT, tak v rozpočtu KÚ a magistrátů.
D19: 2) | E19: Meziroční snížení výdajů v roce 2008 je dáno aplikací zákona č. 26/2008 Sb. a z něj vyplývajícím nepřeváděním nevyčerpaných prostředků OSS do rezervních fondů, a tudíž jejich nezahrnutím do čerpání.
D20: 3) | E20: Z výdajů kapitoly je již odečten transfer obcím a krajským úřadům.

Sheet B1.8
D4: Tab. B1.8: | H4: Školství celkem – veřejné výdaje v běžných cenách
D5: v letech 2004 až 2013 – podle druhu/typu školy/zařízení
D6: Včetně výdajů Ministerstva obrany. | T6: v tis. Kč
D7: Druh/typ školy/zařízení | J7: 2003 | K7: 2004 | L7: 2005 | M7: 2006 | N7: 2007 | O7: 2008 | P7: 2009 | Q7: 2010 | R7: 2011 | S7: 2012 | T7: 2013
J11: 1) | K11: 1) | L11: 1) | M11: 1) | N11: 1) | O11: 1),4)
E12: Výdaje na školství celkem | J12: 115856594.4 | K12: 123041633.5 | L12: 130319162.7 | M12: 142834091.7 | N12: =N13+N15+N17+N18+N22+N23+N24+N25+N28 -> 152987768.8 | O12: =O13+O15+O17+O18+O22+O23+O24+O25+O28 -> 151002990.3 | P12: =P13+P15+P17+P18+P22+P23+P24+P25+P28 -> 163943010.2 | Q12: 162965058.5 | R12: 173721968.9 | S12: =S13+S15+S17+S18+S22+S23+S24+S25+S28 -> 171369869.8 | T12: 172805174.3
E13: Předškolní vzdělávání | J13: 9764375.15 | K13: 10290055.28 | L13: 11034349.75 | M13: 11974973.94 | N13: =12677779.43-1.02 -> 12677778.41 | O13: =14094522.02-36.78 -> 14094485.24 | P13: 15983396.37 | Q13: 16283334.95 | R13: 16279366.76 | S13: 16933537.22 | T13: 17846305
F14: z toho mateřské školy2) | J14: 9396746.48 | K14: 9911525.23 | L14: 10617936.95 | M14: 11575064.41 | N14: =12315412.06-1.02 -> 12315411.04 | O14: =13720131.72-36.78 -> 13720094.94 | P14: 15620518.33 | Q14: 15899430.73 | R14: 15927107.19 | S14: 16565923.96 | T14: 17722819.15
E15: Základní vzdělávání | J15: 42717454.27 | K15: 44870661.25 | L15: 43975300.42 | M15: 48148901.27 | N15: =47866835.34-431.49 -> 47866403.85 | O15: =49544505.3-1497.75 -> 49543007.55 | P15: 54104041.25 | Q15: 52340323.99 | R15: 54543444.07 | S15: 52983370.47 | T15: 54562370.72
F16: z toho ZŠ, včetně školních družin a klubů2) | J16: 39042825.98 | K16: 40856021.5 | L16: 39818749.3 | M16: 43896391.9 | N16: =43519149.44-431.49 -> 43518717.95 | O16: =45145651.79-1497.75 -> 45144154.04 | P16: 49409358.07 | Q16: 47794252.9 | R16: 49807522 | S16: 48479438.38 | T16: 50299911.56
E17: Základní umělecké školy | J17: 2479893.51 | K17: 2784099.86 | L17: 3037719.11 | M17: 3146091.69 | N17: 3351332.88 | O17: 3544350.19 | P17: 3803588.84 | Q17: 3854152 | R17: 3813943.66 | S17: 3961828.07 | T17: 4009080.74
E18: Střední vzdělávání, konzervatoře, VOŠ | J18: 26536727.46 | K18: 27977689.63 | L18: 29350786.43 | M18: 31495535.58 | N18: 32395028.81 | O18: 33691678.21 | P18: 35585852.08 | Q18: 34486494.61 | R18: 33965622.61 | S18: 33339103.04 | T18: 32118289.18
E19: z toho | F19: gymnázia, včetně sportovních škol2) | J19: 5319711.19 | K19: 5732578.88 | L19: 6115290.15 | M19: 6764190.87 | N19: 7134367.23 | O19: 7552198.31 | P19: 7789675.51 | Q19: 7512373.45 | R19: 7556382.93 | S19: 7539864.812 | T19: 7601572.532
F20: střední odborné školy, konzervatoře, VOŠ2) | J20: 9858050.59 | K20: 10410309.74 | L20: 11065998.39 | M20: 12102644.16 | N20: 12448549.13 | O20: 13037756.29 | P20: 14439441.81 | Q20: 14177464.48 | R20: 14041649.21 | S20: 13815291.81 | T20: 13535294.88
F21: střední odborná učiliště, učiliště, SPV2) | J21: 10065773.76 | K21: 10450543.1 | L21: 10762925.72 | M21: 11155023.61 | N21: 11500741.04 | O21: 11906128.21 | P21: 12188267.9 | Q21: 11630046.47 | R21: 11204133.86 | S21: 10796654.37 | T21: 9813856.408
E22: Stravování žáků MŠ, ZŠ, SŠ | J22: 2064213.5 | K22: 2068146.91 | L22: 3419642.22 | M22: 3409338.06 | N22: 3446532.36 | O22: 3616107.27 | P22: 3818991.29 | Q22: 3699090.36 | R22: 3275541.53 | S22: 3080050.11 | T22: 3122269.544
E23: Ubytovací zařízení3) | J23: 3276243.83 | K23: 3828699.6 | L23: 4055161.19 | M23: 4202069.85 | N23: 4074589.27 | O23: 4159850.97 | P23: 4571945.19 | Q23: 4325751.41 | R23: 4186564.867 | S23: 3144385.794 | T23: 3858645.225
E24: Vysoké školy (včetně kolejí a menz a VaV na VŠ) | J24: 20506297.73 | K24: 22845451.67 | L24: 26442456.14 | M24: 29009170.82 | N24: 34603898 | O24: 31244213.24 | P24: 33710308.08 | Q24: 32308880.27 | R24: 34224959.13 | S24: 34258639.94 | T24: 34229370.45
E25: Státní správa | J25: 642520.16 | K25: 704200.09 | L25: 662073.87 | M25: 709202.77 | N25: 806524.9 | O25: 826054.82 | P25: 750392.86 | Q25: 762392.18 | R25: 812887.4119 | S25: 784411.7533 | T25: 725931.9588
E26: z toho | F26: MŠMT | J26: 292954.29 | K26: 395291.55 | L26: 328208.63 | M26: 365480.53 | N26: 402691.72 | O26: 460872.21 | P26: 397530.13 | Q26: 386368.25 | R26: 387764.7997 | S26: 349951.8021 | T26: 348224.1577
F27: Ostatní státní správa | J27: 338882.7 | K27: 289751.31 | L27: 316763.76 | M27: 343722.28 | N27: 403833.18 | O27: 365182.6 | P27: 352862.73 | Q27: 376023.93 | R27: 425122.6121 | S27: 434459.9512 | T27: 377707.8011
E28: Ostatní výdaje | J28: 7868868.82 | K28: 7672629.16 | L28: 8341673.56 | M28: 10738842.7 | N28: 13765680.34 | O28: 10283242.8 | P28: 11614494.22 | Q28: 14904638.68 | R28: 22619638.86 | S28: 22884543.36 | T28: 22332911.44
D29: Komentáře: | T29: Zdroj: Státní závěrečný účet ČR; ZÚ – kapitola 333-MŠMT; 700-Obce a DSO, KÚ; ZÚ ostatních resortů; ČSÚ
D30: 1) | E30: Z důvodu konsolidace nejsou zahrnuty z daných tříd následující položky: 5321, 5323,5329, 5344, 5345, 5349, 5366, 5641, 5642, 5649, 6341, 6342, 6349, 6441, 6442, 6449.
D31: 2) | E31: Bez škol pro děti/žáky/studenty se SVP.
D32: 3) | E32: Včetně zařízení pro výkon ústavní a ochranné výchovy.
D33: 4) | E33: Meziroční snížení výdajů v roce 2008 je dáno aplikací zákona č. 26/2008 Sb. a z něj vyplývajícím nepřeváděním nevyčerpaných prostředků OSS do rezervních fondů, a tudíž jejich nezahrnutím do čerpání.

Sheet B1.9
D4: Tab. B1.9: | H4: Školství celkem – veřejné výdaje ve stálých cenách roku 2005
D5: v letech 2004 až 2013 – podle druhu/typu školy/zařízení
D6: Včetně výdajů Ministerstva obrany. | T6: v tis. Kč
D7: Druh/typ školy/zařízení | J7: 2003 | K7: 2004 | L7: 2005 | M7: 2006 | N7: 2007 | O7: 2008 | P7: 2009 | Q7: 2010 | R7: 2011 | S7: 2012 | T7: 2013
J11: 1) | K11: 1) | L11: 1) | M11: 1) | N11: 1) | O11: 1),4)
E12: Výdaje na školství celkem | J12: =B1.8!J12/B1.5!J$17*100 -> 121315805.7 | K12: =B1.8!K12/B1.5!K$17*100 -> 125424702.8 | L12: =B1.8!L12/B1.5!L$17*100 -> 130319162.7 | M12: =B1.8!M12/B1.5!M$17*100 -> 139350333.3 | N12: =B1.8!N12/B1.5!N$17*100 -> 145149685.8 | O12: =B1.8!O12/B1.5!O$17*100 -> 134703827.2 | P12: =B1.8!P12/B1.5!P$17*100 -> 144698155.5 | Q12: =B1.8!Q12/B1.5!Q$17*100 -> 141832078.7 | R12: =B1.8!R12/B1.5!R$17*100 -> 148353517.4 | S12: =B1.8!S12/B1.5!S$17*100 -> 141627991.5 | T12: =B1.8!T12/B1.5!T$17*100 -> 140835512.8
E13: Předškolní vzdělávání | J13: =B1.8!J13/B1.5!J$17*100 -> 10224476.6 | K13: =B1.8!K13/B1.5!K$17*100 -> 10489352.99 | L13: =B1.8!L13/B1.5!L$17*100 -> 11034349.75 | M13: =B1.8!M13/B1.5!M$17*100 -> 11682901.4 | N13: =B1.8!N13/B1.5!N$17*100 -> 12028252.76 | O13: =B1.8!O13/B1.5!O$17*100 -> 12573135.81 | P13: =B1.8!P13/B1.5!P$17*100 -> 14107145.96 | Q13: =B1.8!Q13/B1.5!Q$17*100 -> 14171744.95 | R13: =B1.8!R13/B1.5!R$17*100 -> 13902106.54 | S13: =B1.8!S13/B1.5!S$17*100 -> 13994658.86 | T13: =B1.8!T13/B1.5!T$17*100 -> 14544665.85
F14: z toho mateřské školy2) | J14: =B1.8!J14/B1.5!J$17*100 -> 9839525.11 | K14: =B1.8!K14/B1.5!K$17*100 -> 10103491.57 | L14: =B1.8!L14/B1.5!L$17*100 -> 10617936.95 | M14: =B1.8!M14/B1.5!M$17*100 -> 11292745.77 | N14: =B1.8!N14/B1.5!N$17*100 -> 11684450.7 | O14: =B1.8!O14/B1.5!O$17*100 -> 12239156.95 | P14: =B1.8!P14/B1.5!P$17*100 -> 13786865.25 | Q14: =B1.8!Q14/B1.5!Q$17*100 -> 13837624.66 | R14: =B1.8!R14/B1.5!R$17*100 -> 13601287.1 | S14: =B1.8!S14/B1.5!S$17*100 -> 13690846.25 | T14: =B1.8!T14/B1.5!T$17*100 -> 14444025.39
E15: Základní vzdělávání | J15: =B1.8!J15/B1.5!J$17*100 -> 44730318.61 | K15: =B1.8!K15/B1.5!K$17*100 -> 45739715.85 | L15: =B1.8!L15/B1.5!L$17*100 -> 43975300.42 | M15: =B1.8!M15/B1.5!M$17*100 -> 46974537.82 | N15: =B1.8!N15/B1.5!N$17*100 -> 45414045.4 | O15: =B1.8!O15/B1.5!O$17*100 -> 44195368.02 | P15: =B1.8!P15/B1.5!P$17*100 -> 47752904.9 | Q15: =B1.8!Q15/B1.5!Q$17*100 -> 45552936.46 | R15: =B1.8!R15/B1.5!R$17*100 -> 46578517.57 | S15: =B1.8!S15/B1.5!S$17*100 -> 43787909.48 | T15: =B1.8!T15/B1.5!T$17*100 -> 44468109.79
F16: z toho ZŠ, včetně školních družin a klubů2) | J16: =B1.8!J16/B1.5!J$17*100 -> 40882540.29 | K16: =B1.8!K16/B1.5!K$17*100 -> 41647320.59 | L16: =B1.8!L16/B1.5!L$17*100 -> 39818749.3 | M16: =B1.8!M16/B1.5!M$17*100 -> 42825748.2 | N16: =B1.8!N16/B1.5!N$17*100 -> 41289106.21 | O16: =B1.8!O16/B1.5!O$17*100 -> 40271323.85 | P16: =B1.8!P16/B1.5!P$17*100 -> 43609318.68 | Q16: =B1.8!Q16/B1.5!Q$17*100 -> 41596390.69 | R16: =B1.8!R16/B1.5!R$17*100 -> 42534177.63 | S16: =B1.8!S16/B1.5!S$17*100 -> 40065651.55 | T16: =B1.8!T16/B1.5!T$17*100 -> 40994222.95
E17: Základní umělecké školy | J17: =B1.8!J17/B1.5!J$17*100 -> 2596747.131 | K17: =B1.8!K17/B1.5!K$17*100 -> 2838022.283 | L17: =B1.8!L17/B1.5!L$17*100 -> 3037719.11 | M17: =B1.8!M17/B1.5!M$17*100 -> 3069357.746 | N17: =B1.8!N17/B1.5!N$17*100 -> 3179632.713 | O17: =B1.8!O17/B1.5!O$17*100 -> 3161775.37 | P17: =B1.8!P17/B1.5!P$17*100 -> 3357095.181 | Q17: =B1.8!Q17/B1.5!Q$17*100 -> 3354353.351 | R17: =B1.8!R17/B1.5!R$17*100 -> 3256997.148 | S17: =B1.8!S17/B1.5!S$17*100 -> 3274238.074 | T17: =B1.8!T17/B1.5!T$17*100 -> 3267384.466
E18: Střední vzdělávání | J18: =B1.8!J18/B1.5!J$17*100 -> 27787149.17 | K18: =B1.8!K18/B1.5!K$17*100 -> 28519561.29 | L18: =B1.8!L18/B1.5!L$17*100 -> 29350786.43 | M18: =B1.8!M18/B1.5!M$17*100 -> 30727351.79 | N18: =B1.8!N18/B1.5!N$17*100 -> 30735321.45 | O18: =B1.8!O18/B1.5!O$17*100 -> 30055020.7 | P18: =B1.8!P18/B1.5!P$17*100 -> 31408519.05 | Q18: =B1.8!Q18/B1.5!Q$17*100 -> 30014355.62 | R18: =B1.8!R18/B1.5!R$17*100 -> 29005655.52 | S18: =B1.8!S18/B1.5!S$17*100 -> 27552977.72 | T18: =B1.8!T18/B1.5!T$17*100 -> 26176274.8
E19: z toho | F19: gymnázia, včetně sportovních škol2) | J19: =B1.8!J19/B1.5!J$17*100 -> 5570378.209 | K19: =B1.8!K19/B1.5!K$17*100 -> 5843607.421 | L19: =B1.8!L19/B1.5!L$17*100 -> 6115290.15 | M19: =B1.8!M19/B1.5!M$17*100 -> 6599210.605 | N19: =B1.8!N19/B1.5!N$17*100 -> 6768849.364 | O19: =B1.8!O19/B1.5!O$17*100 -> 6737019.01 | P19: =B1.8!P19/B1.5!P$17*100 -> 6875265.234 | Q19: =B1.8!Q19/B1.5!Q$17*100 -> 6538184.03 | R19: =B1.8!R19/B1.5!R$17*100 -> 6452931.622 | S19: =B1.8!S19/B1.5!S$17*100 -> 6231293.233 | T19: =B1.8!T19/B1.5!T$17*100 -> 6195250.637
F20: střední odborné školy, konzervatoře a VOŠ2) | J20: =B1.8!J20/B1.5!J$17*100 -> 10322566.06 | K20: =B1.8!K20/B1.5!K$17*100 -> 10611936.53 | L20: =B1.8!L20/B1.5!L$17*100 -> 11065998.39 | M20: =B1.8!M20/B1.5!M$17*100 -> 11807457.72 | N20: =B1.8!N20/B1.5!N$17*100 -> 11810767.68 | O20: =B1.8!O20/B1.5!O$17*100 -> 11630469.48 | P20: =B1.8!P20/B1.5!P$17*100 -> 12744432.31 | Q20: =B1.8!Q20/B1.5!Q$17*100 -> 12338959.51 | R20: =B1.8!R20/B1.5!R$17*100 -> 11991160.73 | S20: =B1.8!S20/B1.5!S$17*100 -> 11417596.54 | T20: =B1.8!T20/B1.5!T$17*100 -> 11031210.17
F21: střední odborná učiliště, učiliště, SPV2) | J21: =B1.8!J21/B1.5!J$17*100 -> 10540077.24 | K21: =B1.8!K21/B1.5!K$17*100 -> 10652949.13 | L21: =B1.8!L21/B1.5!L$17*100 -> 10762925.72 | M21: =B1.8!M21/B1.5!M$17*100 -> 10882949.86 | N21: =B1.8!N21/B1.5!N$17*100 -> 10911519.01 | O21: =B1.8!O21/B1.5!O$17*100 -> 10620988.59 | P21: =B1.8!P21/B1.5!P$17*100 -> 10757518.01 | Q21: =B1.8!Q21/B1.5!Q$17*100 -> 10121885.53 | R21: =B1.8!R21/B1.5!R$17*100 -> 9568005.002 | S21: =B1.8!S21/B1.5!S$17*100 -> 8922854.847 | T21: =B1.8!T21/B1.5!T$17*100 -> 7998252.981
E22: Stravování žáků MŠ, ZŠ, SŠ | J22: =B1.8!J22/B1.5!J$17*100 -> 2161480.105 | K22: =B1.8!K22/B1.5!K$17*100 -> 2108202.762 | L22: =B1.8!L22/B1.5!L$17*100 -> 3419642.22 | M22: =B1.8!M22/B1.5!M$17*100 -> 3326183.473 | N22: =B1.8!N22/B1.5!N$17*100 -> 3269954.801 | O22: =B1.8!O22/B1.5!O$17*100 -> 3225787.038 | P22: =B1.8!P22/B1.5!P$17*100 -> 3370689.576 | Q22: =B1.8!Q22/B1.5!Q$17*100 -> 3219399.791 | R22: =B1.8!R22/B1.5!R$17*100 -> 2797217.361 | S22: =B1.8!S22/B1.5!S$17*100 -> 2545495.959 | T22: =B1.8!T22/B1.5!T$17*100 -> 2544636.955
E23: Ubytovací zařízení3) | J23: =B1.8!J23/B1.5!J$17*100 -> 3430621.812 | K23: =B1.8!K23/B1.5!K$17*100 -> 3902853.823 | L23: =B1.8!L23/B1.5!L$17*100 -> 4055161.19 | M23: =B1.8!M23/B1.5!M$17*100 -> 4099580.341 | N23: =B1.8!N23/B1.5!N$17*100 -> 3865834.222 | O23: =B1.8!O23/B1.5!O$17*100 -> 3710839.402 | P23: =B1.8!P23/B1.5!P$17*100 -> 4035256.125 | Q23: =B1.8!Q23/B1.5!Q$17*100 -> 3764796.701 | R23: =B1.8!R23/B1.5!R$17*100 -> 3575204.839 | S23: =B1.8!S23/B1.5!S$17*100 -> 2598665.946 | T23: =B1.8!T23/B1.5!T$17*100 -> 3144780.134
E24: Vysoké školy (včetně kolejí a menz a VaV na VŠ) | J24: =B1.8!J24/B1.5!J$17*100 -> 21472563.07 | K24: =B1.8!K24/B1.5!K$17*100 -> 23287922.19 | L24: =B1.8!L24/B1.5!L$17*100 -> 26442456.14 | M24: =B1.8!M24/B1.5!M$17*100 -> 28301630.07 | N24: =B1.8!N24/B1.5!N$17*100 -> 32831022.77 | O24: =B1.8!O24/B1.5!O$17*100 -> 27871733.49 | P24: =B1.8!P24/B1.5!P$17*100 -> 29753140.41 | Q24: =B1.8!Q24/B1.5!Q$17*100 -> 28119129.91 | R24: =B1.8!R24/B1.5!R$17*100 -> 29227121.37 | S24: =B1.8!S24/B1.5!S$17*100 -> 28312925.57 | T24: =B1.8!T24/B1.5!T$17*100 -> 27896797.43
E25: Státní správa | J25: =B1.8!J25/B1.5!J$17*100 -> 672795.9791 | K25: =B1.8!K25/B1.5!K$17*100 -> 717839.0316 | L25: =B1.8!L25/B1.5!L$17*100 -> 662073.87 | M25: =B1.8!M25/B1.5!M$17*100 -> 691905.1415 | N25: =B1.8!N25/B1.5!N$17*100 -> 765203.8899 | O25: =B1.8!O25/B1.5!O$17*100 -> 736891.008 | P25: =B1.8!P25/B1.5!P$17*100 -> 662306.143 | Q25: =B1.8!Q25/B1.5!Q$17*100 -> 663526.7015 | R25: =B1.8!R25/B1.5!R$17*100 -> 694182.2475 | S25: =B1.8!S25/B1.5!S$17*100 -> 648274.1763 | T25: =B1.8!T25/B1.5!T$17*100 -> 591631.5883
E26: z toho | F26: MŠMT | J26: =B1.8!J26/B1.5!J$17*100 -> 306758.4188 | K26: =B1.8!K26/B1.5!K$17*100 -> 402947.5535 | L26: =B1.8!L26/B1.5!L$17*100 -> 328208.63 | M26: =B1.8!M26/B1.5!M$17*100 -> 356566.3707 | N26: =B1.8!N26/B1.5!N$17*100 -> 382060.4554 | O26: =B1.8!O26/B1.5!O$17*100 -> 411125.9679 | P26: =B1.8!P26/B1.5!P$17*100 -> 350865.075 | Q26: =B1.8!Q26/B1.5!Q$17*100 -> 336264.7955 | R26: =B1.8!R26/B1.5!R$17*100 -> 331139.8802 | S26: =B1.8!S26/B1.5!S$17*100 -> 289216.3654 | T26: =B1.8!T26/B1.5!T$17*100 -> 283801.2695
F27: Česká školní inspekce | J27: =B1.8!J27/B1.5!J$17*100 -> 354850.9948 | K27: =B1.8!K27/B1.5!K$17*100 -> 295363.211 | L27: =B1.8!L27/B1.5!L$17*100 -> 316763.76 | M27: =B1.8!M27/B1.5!M$17*100 -> 335338.8098 | N27: =B1.8!N27/B1.5!N$17*100 -> 383143.4345 | O27: =B1.8!O27/B1.5!O$17*100 -> 325765.0312 | P27: =B1.8!P27/B1.5!P$17*100 -> 311441.068 | Q27: =B1.8!Q27/B1.5!Q$17*100 -> 327261.906 | R27: =B1.8!R27/B1.5!R$17*100 -> 363042.3673 | S27: =B1.8!S27/B1.5!S$17*100 -> 359057.8109 | T27: =B1.8!T27/B1.5!T$17*100 -> 307830.3188
E28: Ostatní výdaje | J28: =B1.8!J28/B1.5!J$17*100 -> 8239653.215 | K28: =B1.8!K28/B1.5!K$17*100 -> 7821232.579 | L28: =B1.8!L28/B1.5!L$17*100 -> 8341673.56 | M28: =B1.8!M28/B1.5!M$17*100 -> 10476919.71 | N28: =B1.8!N28/B1.5!N$17*100 -> 13060417.78 | O28: =B1.8!O28/B1.5!O$17*100 -> 9173276.36 | P28: =B1.8!P28/B1.5!P$17*100 -> 10251098.16 | Q28: =B1.8!Q28/B1.5!Q$17*100 -> 12971835.23 | R28: =B1.8!R28/B1.5!R$17*100 -> 19316514.83 | S28: =B1.8!S28/B1.5!S$17*100 -> 18912845.75 | T28: =B1.8!T28/B1.5!T$17*100 -> 18201231.82
D29: Komentáře: | T29: Zdroj: Státní závěrečný účet ČR; ZÚ – kapitola 333-MŠMT; 700-Obce a DSO, KÚ; ZÚ ostatních resortů; ČSÚ
D30: 1) | E30: Z důvodu konsolidace nejsou zahrnuty z daných tříd následující položky: 5321, 5323,5329, 5344, 5345, 5349, 5366, 5641, 5642, 5649, 6341, 6342, 6349, 6441, 6442, 6449.
D31: 2) | E31: Bez škol pro děti/žáky/studenty se SVP.
D32: 3) | E32: Včetně zařízení pro výkon ústavní a ochranné výchovy.
D33: 4) | E33: Meziroční snížení výdajů v roce 2008 je dáno aplikací zákona č. 26/2008 Sb. a z něj vyplývajícím nepřeváděním nevyčerpaných prostředků OSS do rezervních fondů, a tudíž jejich nezahrnutím do čerpání.

Sheet B1.10
D4: Tab. B1.10: | H4: Školství celkem – jednotkové výdaje na žáka/studenta v běžných cenách
D5: v letech 2004 až 2013 – podle druhu/typu školy
D7: Druh/typ školy | J7: 2003 | K7: 2004 | L7: 2005 | M7: 2006 | N7: 2007 | O7: 2008 | P7: 2009 | Q7: 2010 | R7: 2011 | S7: 2012 | T7: 2013
E12: Předškolní vzdělávání | J12: 32597.42883 | K12: 33621.19329 | L12: 35730.90789 | M12: 38924.16435 | N12: 40491.76383 | O12: 41978.73317 | P12: 44122.81032 | Q12: 42476.67355 | R12: 41708.76656 | S12: 43103.50469 | T12: 42398.21947
F13: z toho mateřské školy1) | J13: 32057.83331 | K13: 33014.29661 | L13: 35183.39896 | M13: 38271.58867 | N13: 39946.1327 | O13: 41518.59807 | P13: 43651.19973 | Q13: 42017.24529 | R13: 41270.78098 | S13: 42697.63505 | T13: 42660.9583
E14: Základní vzdělávání, vč. škol. družin a klubů | J14: 37533.9884 | K14: 40570.93776 | L14: 42236.69068 | M14: 46962.20461 | N14: 50370.71049 | O14: 52572.37798 | P14: 57642.83096 | Q14: 57292.52579 | R14: 60342.56452 | S14: 60593.96129 | T14: 59950.16927
F15: z toho ZŠ, včetně školních družin a klubů1) | J15: 35555.83544 | K15: 38377.20852 | L15: 40635.01225 | M15: 44373.89301 | N15: 46299.76448 | O15: 49739.99499 | P15: 54598.90617 | Q15: 54277.828 | R15: 57213.5011 | S15: 57519.37371 | T15: 57005.11272
E16: Střední vzdělávání a konzervatoře | J16: 43686.28851 | K16: 44972.25582 | L16: 47291.91614 | M16: 50514.83018 | N16: 53018.37127 | O16: 54812.84436 | P16: 57271.4768 | Q16: 57010.13186 | R16: 59340.48616 | S16: 63209.68806 | T16: 64193.95573
E17: z toho | F17: gymnázia, včetně sportovních škol1) | J17: 35515.47797 | K17: 37524.6282 | L17: 39927.18632 | M17: 43114.40569 | N17: 45484.37691 | O17: 47765.73759 | P17: 49668.04569 | Q17: 49280.10461 | R17: 51390.72562 | S17: 54212.07766 | T17: 55647.15159
F18: střední odborné školy, včetně VOŠ1),2) | J18: 40073.41009 | K18: 40981.25647 | L18: 43015.67692 | M18: 47724.16255 | N18: 48372.15261 | O18: 49484.37927 | P18: 52415.52199 | Q18: 52683.90037 | R18: 55522.37316 | S18: 59367.72708 | T18: 63092.29145
F19: konzervatoře1) | J19: . | K19: . | L19: . | M19: . | N19: 154800.4663 | O19: 160971.8426 | P19: 178499.099 | Q19: 180496.1634 | R19: 179795.482 | S19: 182301.9782 | T19: 185190.1272
F20: střední odborná učiliště, učiliště, SPV1) | J20: 52216.22584 | K20: 53375.47503 | L20: 57072.36613 | M20: 58888.14043 | N20: 61375.55175 | O20: 63050.50607 | P20: 65486.06937 | Q20: 64608.15327 | R20: 66603.73713 | S20: 69416.60057 | T20: 67972.97656
E21: Vysoké školy včetně kolejí a menz | J21: 79169.8413 | K21: 82770.00522 | L21: 89025.95831 | M21: 93537.8818 | N21: 95596.67917 | O21: 93763.48632 | P21: 99018.6392 | Q21: 94453.77387 | R21: 97395.93259 | S21: 99501.52218 | T21: 104763.0283
D22: Komentáře: | T22: Zdroj: ZÚ – kapitola 333-MŠMT; 700-Obce a DSO, KÚ; databáze MŠMT
E23: Metodika použitá pro výpočty výdajů na žáka/studenta:
E24: • počet žáků/studentů ve školním roce = počet dětí/žáků/studentů denní formy vzdělávání + 1/3 počtu dětí/žáků/studentů ostatních forem vzdělávání, od roku 2006 1/4 počtu dětí/žáků/studentů ostatních forem vzdělávání,
E25: • přepočtený počet dětí/studentů v kalendářním roce = 2/3 počtu dětí/studentů ve školním roce, který v daném kalendářním roce končí + 1/3 počtu dětí/studentů ve školním roce, který v daném kalendářním roce začíná,
E26: • celkové výdaje na školství = běžné (neinvestiční) výdaje z rozpočtů MŠMT, Obce a DSO, KÚ (nejsou započteny výdaje z rozpočtů MO, MV a MSp, které nejsou v ucelené vývojové řadě k dispozici).
D27: 1) | E27: Bez škol pro děti/žáky/studenty se SVP.
D28: 2) | E28: Do roku 2006 včetně konzervatoří.

Sheet B1.11
D4: Tab. B1.11: | H4: Školství celkem – jednotkové výdaje na žáka/studenta ve stálých cenách
D5: roku 2005 v letech 2004 až 2013 – podle druhu/typu školy
D7: Druh/typ školy | J7: 2003 | K7: 2004 | L7: 2005 | M7: 2006 | N7: 2007 | O7: 2008 | P7: 2009 | Q7: 2010 | R7: 2011 | S7: 2012 | T7: 2013
E12: Předškolní vzdělávání | J12: =B1.10!J12/B1.11!J$23*100 -> 34133.43333 | K12: =B1.10!K12/B1.11!K$23*100 -> 34272.36829 | L12: =B1.10!L12/B1.11!L$23*100 -> 35730.90789 | M12: =B1.10!M12/B1.11!M$23*100 -> 37974.79449 | N12: =B1.10!N12/B1.11!N$23*100 -> 38417.23323 | O12: =B1.10!O12/B1.11!O$23*100 -> 37447.57643 | P12: =B1.10!P12/B1.11!P$23*100 -> 38943.34538 | Q12: =B1.10!Q12/B1.11!Q$23*100 -> 36968.38429 | R12: =B1.10!R12/B1.11!R$23*100 -> 35618.07563 | S12: =B1.10!S12/B1.11!S$23*100 -> 35622.73115 | T12: =B1.10!T12/B1.11!T$23*100 -> 34554.3761
F13: z toho mateřské školy1) | J13: =B1.10!J13/B1.11!J$23*100 -> 33568.41184 | K13: =B1.10!K13/B1.11!K$23*100 -> 33653.71723 | L13: =B1.10!L13/B1.11!L$23*100 -> 35183.39896 | M13: =B1.10!M13/B1.11!M$23*100 -> 37338.13528 | N13: =B1.10!N13/B1.11!N$23*100 -> 37899.55664 | O13: =B1.10!O13/B1.11!O$23*100 -> 37037.108 | P13: =B1.10!P13/B1.11!P$23*100 -> 38527.09597 | Q13: =B1.10!Q13/B1.11!Q$23*100 -> 36568.53376 | R13: =B1.10!R13/B1.11!R$23*100 -> 35244.04866 | S13: =B1.10!S13/B1.11!S$23*100 -> 35287.30169 | T13: =B1.10!T13/B1.11!T$23*100 -> 34768.50717
E14: Základní vzdělávání, vč. škol. družin a klubů | J14: =B1.10!J14/B1.11!J$23*100 -> 39302.60565 | K14: =B1.10!K14/B1.11!K$23*100 -> 41356.71535 | L14: =B1.10!L14/B1.11!L$23*100 -> 42236.69068 | M14: =B1.10!M14/B1.11!M$23*100 -> 45816.78499 | N14: =B1.10!N14/B1.11!N$23*100 -> 47790.04791 | O14: =B1.10!O14/B1.11!O$23*100 -> 46897.7502 | P14: =B1.10!P14/B1.11!P$23*100 -> 50876.28505 | Q14: =B1.10!Q14/B1.11!Q$23*100 -> 49862.94672 | R14: =B1.10!R14/B1.11!R$23*100 -> 51530.79805 | S14: =B1.10!S14/B1.11!S$23*100 -> 50077.65396 | T14: =B1.10!T14/B1.11!T$23*100 -> 48859.14366
F15: z toho ZŠ, včetně školních družin a klubů1) | J15: =B1.10!J15/B1.11!J$23*100 -> 37231.2413 | K15: =B1.10!K15/B1.11!K$23*100 -> 39120.49798 | L15: =B1.10!L15/B1.11!L$23*100 -> 40635.01225 | M15: =B1.10!M15/B1.11!M$23*100 -> 43291.60294 | N15: =B1.10!N15/B1.11!N$23*100 -> 43927.67028 | O15: =B1.10!O15/B1.11!O$23*100 -> 44371.09276 | P15: =B1.10!P15/B1.11!P$23*100 -> 48189.67887 | Q15: =B1.10!Q15/B1.11!Q$23*100 -> 47239.18886 | R15: =B1.10!R15/B1.11!R$23*100 -> 48858.66875 | S15: =B1.10!S15/B1.11!S$23*100 -> 47536.67249 | T15: =B1.10!T15/B1.11!T$23*100 -> 46458.93457
E16: Střední vzdělávání a konzervatoře | J16: =B1.10!J16/B1.11!J$23*100 -> 45744.80472 | K16: =B1.10!K16/B1.11!K$23*100 -> 45843.2781 | L16: =B1.10!L16/B1.11!L$23*100 -> 47291.91614 | M16: =B1.10!M16/B1.11!M$23*100 -> 49282.76115 | N16: =B1.10!N16/B1.11!N$23*100 -> 50302.06003 | O16: =B1.10!O16/B1.11!O$23*100 -> 48896.38213 | P16: =B1.10!P16/B1.11!P$23*100 -> 50548.52321 | Q16: =B1.10!Q16/B1.11!Q$23*100 -> 49617.17308 | R16: =B1.10!R16/B1.11!R$23*100 -> 50675.05223 | S16: =B1.10!S16/B1.11!S$23*100 -> 52239.41162 | T16: =B1.10!T16/B1.11!T$23*100 -> 52317.81233
E17: z toho | F17: gymnázia, včetně sportovních škol1) | J17: =B1.10!J17/B1.11!J$23*100 -> 37188.98217 | K17: =B1.10!K17/B1.11!K$23*100 -> 38251.4049 | L17: =B1.10!L17/B1.11!L$23*100 -> 39927.18632 | M17: =B1.10!M17/B1.11!M$23*100 -> 42062.83482 | N17: =B1.10!N17/B1.11!N$23*100 -> 43154.05779 | O17: =B1.10!O17/B1.11!O$23*100 -> 42609.93541 | P17: =B1.10!P17/B1.11!P$23*100 -> 43837.63962 | Q17: =B1.10!Q17/B1.11!Q$23*100 -> 42889.56014 | R17: =B1.10!R17/B1.11!R$23*100 -> 43886.18755 | S17: =B1.10!S17/B1.11!S$23*100 -> 44803.36997 | T17: =B1.10!T17/B1.11!T$23*100 -> 45352.20178
F18: střední odborné školy, včetně VOŠ1),2) | J18: =B1.10!J18/B1.11!J$23*100 -> 41961.68595 | K18: =B1.10!K18/B1.11!K$23*100 -> 41774.98111 | L18: =B1.10!L18/B1.11!L$23*100 -> 43015.67692 | M18: =B1.10!M18/B1.11!M$23*100 -> 46560.15858 | N18: =B1.10!N18/B1.11!N$23*100 -> 45893.88293 | O18: =B1.10!O18/B1.11!O$23*100 -> 44143.06804 | P18: =B1.10!P18/B1.11!P$23*100 -> 46262.59664 | Q18: =B1.10!Q18/B1.11!Q$23*100 -> 45851.95855 | R18: =B1.10!R18/B1.11!R$23*100 -> 47414.49459 | S18: =B1.10!S18/B1.11!S$23*100 -> 49064.23726 | T18: =B1.10!T18/B1.11!T$23*100 -> 51419.96043
F19: konzervatoře1) | J19: . | K19: . | L19: . | M19: . | N19: . | O19: =B1.10!O19/B1.11!O$23*100 -> 143596.6482 | P19: =B1.10!P19/B1.11!P$23*100 -> 157545.542 | Q19: =B1.10!Q19/B1.11!Q$23*100 -> 157089.7854 | R19: =B1.10!R19/B1.11!R$23*100 -> 153540.1213 | S19: =B1.10!S19/B1.11!S$23*100 -> 150662.7919 | T19: =B1.10!T19/B1.11!T$23*100 -> 150929.1991
F20: střední odborná učiliště, učiliště, SPV1) | J20: =B1.10!J20/B1.11!J$23*100 -> 54676.67627 | K20: =B1.10!K20/B1.11!K$23*100 -> 54409.2508 | L20: =B1.10!L20/B1.11!L$23*100 -> 57072.36613 | M20: =B1.10!M20/B1.11!M$23*100 -> 57451.84432 | N20: =B1.10!N20/B1.11!N$23*100 -> 58231.07377 | O20: =B1.10!O20/B1.11!O$23*100 -> 56244.87606 | P20: =B1.10!P20/B1.11!P$23*100 -> 57798.82557 | Q20: =B1.10!Q20/B1.11!Q$23*100 -> 56229.89841 | R20: =B1.10!R20/B1.11!R$23*100 -> 56877.65767 | S20: =B1.10!S20/B1.11!S$23*100 -> 57369.09138 | T20: =B1.10!T20/B1.11!T$23*100 -> 55397.69891
E21: Vysoké školy včetně kolejí a menz | J21: =B1.10!J21/B1.11!J$23*100 -> 82900.35738 | K21: =B1.10!K21/B1.11!K$23*100 -> 84373.094 | L21: =B1.10!L21/B1.11!L$23*100 -> 89025.95831 | M21: =B1.10!M21/B1.11!M$23*100 -> 91256.47004 | N21: =B1.10!N21/B1.11!N$23*100 -> 90698.93659 | O21: =B1.10!O21/B1.11!O$23*100 -> 83642.7175 | P21: =B1.10!P21/B1.11!P$23*100 -> 87395.09197 | Q21: =B1.10!Q21/B1.11!Q$23*100 -> 82205.19919 | R21: =B1.10!R21/B1.11!R$23*100 -> 83173.29854 | S21: =B1.10!S21/B1.11!S$23*100 -> 82232.66296 | T21: =B1.10!T21/B1.11!T$23*100 -> 85381.44115
D22: Index spotřebitelských cen a meziroční inflace
E23: Index spotřebitelských cen (rok 2005 = 100) | J23: 95.5 | K23: 98.1 | L23: 100 | M23: 102.5 | N23: 105.4 | O23: 112.1 | P23: 113.3 | Q23: 114.9 | R23: 117.1 | S23: 121 | T23: 122.7
E24: Meziroční inflace | J24: 0.001 | K24: 0.028 | L24: 0.019 | M24: 0.025 | N24: 0.028 | O24: 0.063 | P24: 0.01 | Q24: 0.015 | R24: 0.019 | S24: 0.033 | T24: 0.014
D25: Komentáře: | T25: Zdroj: ZÚ – kapitola 333-MŠMT; 700-Obce a DSO, KÚ; databáze MŠMT
E26: Metodika použitá pro výpočty výdajů na žáka/studenta:
E27: • počet žáků/studentů ve školním roce = počet dětí/žáků/studentů denní formy vzdělávání + 1/3 počtu dětí/žáků/studentů ostatních forem vzdělávání, od roku 2006 1/4 počtu dětí/žáků/studentů ostatních forem vzdělávání,
E28: • přepočtený počet dětí/studentů v kalendářním roce = 2/3 počtu dětí/studentů ve školním roce, který v daném kalendářním roce končí + 1/3 počtu dětí/studentů ve školním roce, který v daném kalendářním roce začíná,
E29: • celkové výdaje na školství = běžné (neinvestiční) výdaje z rozpočtů MŠMT, Obce a DSO, KÚ (nejsou započteny výdaje z rozpočtů MO, MV a MSp, které nejsou v ucelené vývojové řadě k dispozici).
D30: 1) | E30: Bez škol pro děti/žáky/studenty se SVP.
D31: 2) | E31: Do roku 2006 včetně konzervatoří.

Sheet B1.12
D4: Tab. B1.12: | H4: Školství celkem, neveřejné školy a školská zařízení – výše dotací
D5: z rozpočtu kapitoly 333-MŠMT v letech 2004 až 2013 – podle zřizovatele
T6: v tis. Kč
D7: Zřizovatel | J7: 2003 | K7: 2004 | L7: 2005 | M7: 2006 | N7: 2007 | O7: 2008 | P7: 2009 | Q7: 2010 | R7: 2011 | S7: 2012 | T7: 2013
E12: Neveřejné celkem | J12: 3341562.91 | K12: 3580016.647 | L12: 3849801.818 | M12: 4243343.946 | N12: 4528406.722 | O12: 4889100.715 | P12: 5026755.783 | Q12: =Q13+Q14 -> 5100180.077 | R12: =R13+R14 -> 5088128.125 | S12: =S13+S14 -> 5117480.223 | T12: =T13+T14 -> 5193374.17
E13: v tom | F13: soukromé | J13: 2723177.65 | K13: 2912555.879 | L13: 3123623.988 | M13: 3461196.839 | N13: 3672308.703 | O13: 3941870 | P13: 3999147.458 | Q13: 4081244 | R13: 4008208 | S13: 3984927 | T13: 4004119.17
F14: církevní | J14: 618385.26 | K14: 667460.768 | L14: 726177.8296 | M14: 782147.107 | N14: 856098.019 | O14: 947230.7145 | P14: 1027608.325 | Q14: 1018936.077 | R14: 1079920.125 | S14: 1132553.223 | T14: 1189255
T15: Zdroj: Centrální registr dotací MF

Sheet B1.13
D4: Tab. B1.13: | H4: Školství celkem – přepočtené počty zaměstnanců
D5: v letech 2004 až 2013
J7: 2003 | K7: 2004 | L7: 2005 | M7: 2006 | N7: 2007 | O7: 2008 | P7: 2009 | Q7: 2010 | R7: 2011 | S7: 2012 | T7: 2013
D12: Všichni zřizovatelé (bez jiných resortů)
E13: Školy celkem | J13: 276992.802 | K13: 274522.581 | L13: 272617 | M13: 271763.247 | N13: 271496.954 | O13: 270439.558 | P13: 270377.906 | Q13: 271230.417 | R13: 269703.204 | S13: 268433.19 | T13: 269912.457
E14: v tom | F14: regionální školství | J14: 244248.254 | K14: 241290.158 | L14: 238113.3 | M14: 236084.974 | N14: 234899.479 | O14: 233315.317 | P14: 232614.73 | Q14: 233147.791 | R14: 231528.716 | S14: 229787.503 | T14: 229649.459
F15: vysoké školy1) | J15: 32744.548 | K15: 33232.423 | L15: 34503.596 | M15: 35678.273 | N15: 36597.475 | O15: 37124.241 | P15: 37763.176 | Q15: 38082.626 | R15: 38174.488 | S15: 38645.687 | T15: 40262.998
E16: Ostatní přímo řízené organizace PO2) | J16: 1057.539 | K16: 1064.248 | L16: 916.569 | M16: 918.658 | N16: 917.918 | O16: 840.519 | P16: 976.345 | Q16: 1116.504 | R16: 1029.563 | S16: 851.764 | T16: 800.076
E17: v tom | F17: OPŘO odměňující dle § 109 odst. 3 ZP4) | J17: 1057.539 | K17: 1064.248 | L17: 916.569 | M17: 918.658 | N17: 884.846 | O17: 807.794 | P17: 944.99 | Q17: 1088.554 | R17: 1004.671 | S17: 832.174 | T17: 785.407
F18: OPŘO odměňující dle § 109 odst. 2 ZP3) | J18: x | K18: x | L18: x | M18: x | N18: 33.072 | O18: 32.725 | P18: 31.355 | Q18: 27.95 | R18: 24.892 | S18: 19.59 | T18: 14.669
E19: Ostatní organizační složky státu (VSC, CZVV)4) | J19: 98 | K19: 96 | L19: 94 | M19: 138.49 | N19: 141.58 | O19: 161.863 | P19: 111.254 | Q19: 92 | R19: 92 | S19: 91.44 | T19: 91.975
D20: Komentáře: | T20: Zdroj: databáze MŠMT
D21: 1) | E21: Veřejné vysoké školy včetně kolejí, menz, vysokoškolských zemědělských a lesních statků, včetně zaměstnanců výzkumu a vývoje.
D22: 2) | E22: Ostatní přímo řízené organizace včetně pedagogických center (VSC od 1. 3. 2003 změnilo formu hospodaření z OPŘO PO na organizační složku státu, CZVV od 1. 1. 2006).
D23: 3) | E23: VKC a CSVŠ od 1. 1. 2007 odměňují podle zákona č. 262/06 Sb., § 109 odst. 2.
D24: 4) | E24: CZVV změnilo od 1. 4. 2009 formu hospodaření z ostatní OSS na OPŘO PO, data jsou kumulativní.

Sheet B1.14
D4: Tab. B1.14: | H4: Školství celkem – průměrné měsíční mzdy
D5: v letech 2004 až 2013
D6: Data za jednotlivé roky jsou přepočtena ve srovnatelné metodice – nemusí souhlasit s dřívějšími publikacemi.
J7: 2003 | K7: 2004 | L7: 2005 | M7: 2006 | N7: 2007 | O7: 2008 | P7: 2009 | Q7: 2010 | R7: 2011 | S7: 2011 | T7: 2012
O11: 5) | P11: 5) | Q11: 5) | R11: 5) | S11: 5) | T11: 5)
D12: Všichni zřizovatelé (bez jiných resortů)
D13: Nominální mzda (v běžných cenách)
E14: Celkem ČR5) | J14: 17446 | K14: 18583 | L14: 19584 | M14: 20844 | N14: 22384 | O14: 22691 | P14: 23488 | Q14: 23797 | R14: 24436 | S14: 25101 | T14: 25128
E15: Nepodnikatelská sféra5) | J15: 17692 | K15: 18715 | L15: 19876 | M15: 20975 | N15: 22387 | O15: 23337 | P15: 24432 | Q15: 24265 | R15: 24469 | S15: 25018 | T15: 25251
E16: Školy celkem | J16: 16211.682 | K16: 17368.008 | L16: 18668.76622 | M16: 19864 | N16: 21107.9578 | O16: 21893.95764 | P16: 23272.00466 | Q16: 22904.52219 | R16: 23577.79278 | S16: 24248.10819 | T16: 24628.19749
E17: v tom | F17: regionální školství | J17: 15707.912 | K17: 16698.908 | L17: 17712.68059 | M17: 18787 | N17: 19841.65428 | O17: 20519.08244 | P17: 21890.62531 | Q17: 21457.94822 | R17: 22059.45331 | S17: 22600.39345 | T17: 22736.16042
F18: vysoké školy1) | J18: 19969.411 | K18: 22226.131 | L18: 25266.82354 | M18: 26991 | N18: 29235.67804 | O18: 30534.658 | P18: 31781.06606 | Q18: 31760.67425 | R18: 32786.53946 | S18: 34045.43059 | T18: 35419.875
E19: Ostatní přímo řízené organizace PO2) | J19: 17516.08 | K19: 18144.003 | L19: 19608.1888 | M19: 20960 | N19: 21968.47876 | O19: 23528.11368 | P19: 26621.53175 | Q19: 27058.29618 | R19: 27945.57999 | S19: 28669.56966 | T19: 29100.91989
E20: v tom | F20: OPŘO odměňující dle § 109 odst. 3 ZP | J20: 17516.08 | K20: 18144.003 | L20: 19608.1888 | M20: 20960 | N20: 21839.69216 | O20: 23353.32977 | P20: 26560.09843 | Q20: 26994.27053 | R20: 27889.5553 | S20: 28614.72731 | T20: 29043.74675
F21: OPŘO odměňující dle § 109 odst. 2 ZP3) | J21: x | K21: x | L21: x | M21: x | N21: 25414.18219 | O21: 27842.53374 | P21: 28473.0346 | Q21: 29551.86941 | R21: 30206.80339 | S21: 30999.24706 | T21: 32162.08217
E22: Ostatní organizační složky státu (VSC, CZVV)4) | J22: 16560.78 | K22: 18605.035 | L22: 19459.65603 | M22: 22117 | N22: 23609.62177 | O22: 24405.51269 | P22: 26855.57673 | Q22: 26448.32156 | R22: 26649.37862 | S22: 27082.2944 | T22: 28993.38588
D23: Reálná mzda (ve stálých cenách roku 2005)
E24: Celkem ČR | J24: =J14/J$34*100 -> 18268.06283 | K24: 18942.91539 | L24: 19584 | M24: 20335.60976 | N24: 21237.19165 | O24: =O14/O$34*100 -> 20241.74844 | P24: 20730.80318 | Q24: 20711.05309 | R24: =R14/R$34*100 -> 20867.6345 | S24: 20744.6281 | T24: 20479.2176
E25: Nepodnikatelská sféra | J25: 18525.65445 | K25: 19077.47197 | L25: 19876 | M25: 20463.41463 | N25: 21240.03795 | O25: 20818.01963 | P25: 21563.98941 | Q25: 21118.36379 | R25: 20895.81554 | S25: 20676.03306 | T25: 20579.4621
E26: Školy celkem | J26: 16975.58325 | K26: 17704.39144 | L26: 18668.76622 | M26: 19379.5122 | N26: 20026.52543 | O26: 19530.73831 | P26: 20540.16298 | Q26: 19934.31 | R26: 20134.75045 | S26: 20039.75884 | T26: 20071.8806
E27: v tom | F27: regionální školství | J27: 16448.07539 | K27: 17022.33231 | L27: 17712.68059 | M27: 18328.78049 | N27: 18825.09893 | O27: 18304.26623 | P27: 19320.94026 | Q27: 18675.32482 | R27: 18838.13263 | S27: 18678.01112 | T27: 18529.8781
F28: vysoké školy1) | J28: 20910.37801 | K28: 22656.60652 | L28: 25266.82354 | M28: 26332.68293 | N28: 27737.83496 | O28: 27238.76717 | P28: 28050.36722 | Q28: 27642.01414 | R28: 27998.75274 | S28: 28136.7195 | T28: 28867.05379
E29: Ostatní přímo řízené organizace PO2) | J29: 18341.44503 | K29: 18495.4159 | L29: 19608.1888 | M29: 20448.78049 | N29: 20842.95897 | O29: 20988.50462 | P29: 23496.49757 | Q29: 23549.43096 | R29: 23864.71391 | S29: 23693.85922 | T29: 23717.13113
E30: v tom | F30: OPŘO odměňující dle § 109 odst. 3 ZP | J30: 18341.44503 | K30: 18495.4159 | L30: 19608.1888 | M30: 20448.78049 | N30: 20720.77055 | O30: 20832.58677 | P30: 23442.27576 | Q30: 23493.70804 | R30: 23816.87046 | S30: 23648.53497 | T30: 23670.53524
F31: OPŘO odměňující dle § 109 odst. 2 ZP3) | J31: x | K31: x | L31: x | M31: x | N31: =N21/N$34*100 -> 24112.12731 | O31: 24837.22903 | P31: 25130.6572 | Q31: 25719.64265 | R31: 25795.73304 | S31: 25619.21245 | T31: 26211.96591
E32: Ostatní organizační složky státu (VSC, CZVV)4) | J32: =J22/J$34*100 -> 17341.13089 | K32: =K22/K$34*100 -> 18965.37717 | L32: =L22/L$34*100 -> 19459.65603 | M32: =M22/M$34*100 -> 21577.56098 | N32: =N22/N$34*100 -> 22400.02065 | O32: 21771.19776 | P32: 23703.0686 | Q32: 23018.55662 | R32: 22757.79558 | S32: 22382.06149 | T32: 23629.49135
D33: Index spotřebitelských cen a meziroční inflace
E34: Index spotřebitelských cen (rok 2005 = 100) | J34: 95.5 | K34: 98.1 | L34: 100 | M34: 102.5 | N34: 105.4 | O34: 112.1 | P34: 113.3 | Q34: 114.9 | R34: 117.1 | S34: 121 | T34: 122.7
E35: Meziroční inflace | J35: 0.001 | K35: 0.028 | L35: 0.019 | M35: 0.025 | N35: 0.028 | O35: 0.063 | P35: 0.01 | Q35: 0.015 | R35: 0.019 | S35: 0.033 | T35: 0.014
D36: Komentáře: | T36: Zdroj: databáze MŠMT, ČSÚ
D37: 1) | E37: Veřejné vysoké školy včetně kolejí, menz, vysokoškolských zemědělských a lesních statků, včetně zaměstnanců výzkumu a vývoje.
D38: 2) | E38: Ostatní přímo řízené organizace včetně pedagogických center (VSC od 1. 3. 2003 změnilo formu hospodaření z OPŘO PO na organizační složku státu, CZVV od 1. 1. 2006).
D39: 3) | E39: VKC a CSVŠ od 1. 1. 2007 odměňují podle zákona č. 262/06 Sb., § 109 odst. 2.
D40: 4) | E40: CZVV změnilo od 1. 4. 2009 formu hospodaření z ostatní OSS na OPŘO PO, data jsou kumulativní.
D41: 5) | E41: Od 1. 1. 2009 ČSÚ přešel na novou metodiku výpočtu průměrných mezd, kde přednost dostaly údaje za přepočtené počty zaměstnanců a také za nezjišťované podnikatelské subjekty s méně než 20 zaměstnanci (ČR úhrnem). Data před rokem 2008 (bez podlimitních ekonomických subjektů) jsou nesrovnatelná s daty podle nové metodiky v roce 2008 a roce 2009.

Sheet GB1
D4: Obr. B1 | H4: Školství celkem – počet škol ve školním roce 2004/05 až 2013/14 – podle druhu školy
K10: 2003/04 | L10: 2004/05 | M10: 2005/06 | N10: 2006/07 | O10: 2007/08 | P10: 2008/09 | Q10: 2009/10 | R10: 2010/11 | S10: 2011/12 | T10: 2012/13 | U10: 2013/14
J11: MŠ | K11: 5067 | L11: 4994 | M11: 4834 | N11: 4815 | O11: 4808 | P11: 4809 | Q11: 4826 | R11: 4880 | S11: 4931 | T11: 5011 | U11: 5085
J12: ZŠ | K12: 4838 | L12: 4765 | M12: 4474 | N12: 4197 | O12: 4155 | P12: 4133 | Q12: 4125 | R12: 4123 | S12: 4111 | T12: 4095 | U12: 4095
J13: SŠ | K13: 2006 | L13: 1966 | M13: 2004 | N13: 1482 | O13: 1447 | P13: 1438 | Q13: 1433 | R13: 1423 | S13: 1393 | T13: 1347 | U13: 1331
J14: Konzervatoře | K14: 17 | L14: 17 | M14: 17 | N14: 18 | O14: 19 | P14: 18 | Q14: 17 | R14: 18 | S14: 18 | T14: 18 | U14: 18
J15: VOŠ | K15: 169 | L15: 174 | M15: 176 | N15: 174 | O15: 177 | P15: 184 | Q15: 184 | R15: 182 | S15: 180 | T15: 178 | U15: 174
J16: VŠ veřejné a soukromé | K16: 52 | L16: 60 | M16: 64 | N16: 63 | O16: 68 | P16: 71 | Q16: 71 | R16: 70 | S16: 71 | T16: 70 | U16: 69
D39: Komentáře: | U39: Zdroj: databáze MŠMT
E40: Ve školním roce 2004/05 MŠ a ZŠ včetně škol při zdravotnických zařízeních.
E41: Do školního roku 2004/05 jsou MŠ a ZŠ započteny podle počtu jednotlivých pracovišť, od školního roku 2005/06 je uveden počet škol bez ohledu na počet těchto pracovišť. U středních škol, konzervatoří a VOŠ došlo k této změně vykazování o rok později.

Sheet GB2
D4: Obr. B2 | G4: Školství celkem – struktura dětí/žáků/studentů ve školním roce 2004/05 až 2013/14 – podle druhu školy
J10: 2003/04 | K10: 2004/05 | L10: 2005/06 | M10: 2006/07 | N10: 2007/08 | O10: 2008/09 | P10: 2009/10 | Q10: 2010/11 | R10: 2011/12 | S10: 2012/13 | T10: 2013/14
I11: MŠ | J11: 284166 | K11: 284218 | L11: 282183 | M11: 285419 | N11: 291194 | O11: 301620 | P11: 314008 | Q11: 328612 | R11: 342521 | S11: 354340 | T11: 363568
I12: ZŠ | J12: 992770 | K12: 953655 | L12: 916575 | M12: 876513 | N12: 844863 | O12: 816015 | P12: 794459 | Q12: 789486 | R12: 794642 | S12: 807950 | T12: 827654
I13: SŠ | J13: 576615 | K13: 579505 | L13: 577605 | M13: 576585 | N13: 569267 | O13: 564326 | P13: 556260 | Q13: 532918 | R13: 501220 | S13: 470754 | T13: 448792
I14: Konzervatoře | J14: 3543 | K14: 3505 | L14: 3495 | M14: 3534 | N14: 3606 | O14: 3535 | P14: 3435 | Q14: 3560 | R14: 3557 | S14: 3655 | T14: 3690
I15: VOŠ | J15: 30681 | K15: 29759 | L15: 28792 | M15: 27650 | N15: 28774 | O15: 28027 | P15: 28749 | Q15: 29800 | R15: 29335 | S15: 28980 | T15: 28332
I16: VŠ | J16: 243723 | K16: 264785 | L16: 289472 | M16: 316176 | N16: 343938 | O16: 368052 | P16: 389006 | Q16: 395992 | R16: 392099 | S16: 381047 | T16: 368304
D40: Komentáře: | T40: Zdroj: databáze MŠMT
E41: Ve školním roce 2004/05 MŠ a ZŠ včetně škol při zdravotnických zařízeních.
E42: U VŠ počet studií.

Sheet GB3
D4: Obr. B3 | G4: Školství celkem – struktura veřejných výdajů (v %) v letech 2004 až 2013
J10: 2003 | K10: 2004 | L10: 2005 | M10: 2006 | N10: 2007 | O10: 2008 | P10: 2009 | Q10: 2010 | R10: 2011 | S10: 2012 | T10: 2013
I11: Předškolní vzdělávání | J11: 0.08427983921 | K11: 0.08363067843 | L11: 0.08467173608 | M11: 0.08383834559 | N11: 0.08286769385 | O11: 0.09333840848 | P11: 0.09749361289 | Q11: 0.09991917964 | R11: 0.09370803076 | S11: 0.09881280323 | T11: 0.1032741356
I12: Základní vzdělávání včetně školních družin a klubů | J12: 0.3687097353 | K12: 0.3646786863 | L12: 0.337443086 | M12: 0.3370967022 | N12: 0.3128792608 | O12: 0.3280994749 | P12: 0.3300173712 | Q12: 0.321175131 | R12: 0.3139819925 | S12: 0.309175531 | T12: 0.3157450056
I13: Střední vzdělávání včetně VOŠ a konzervatoří | J13: 0.2290480537 | K13: 0.2273839256 | L13: 0.2252223374 | M13: 0.2205043293 | N13: 0.2117485435 | O13: 0.2231170109 | P13: 0.2170623318 | Q13: 0.2116189503 | R13: 0.1955135252 | S13: 0.1945447183 | T13: 0.1858641636
I14: Vysoké školy | J14: 0.1769972424 | K14: 0.1856725324 | L14: 0.2029053563 | M14: 0.2030969671 | N14: 0.2261867105 | O14: 0.2069091193 | P14: 0.2056221125 | Q14: 0.1982564887 | R14: 0.1970063227 | S14: 0.1999105209 | T14: 0.1980807033
I15: Ostatní výdaje | J15: 0.1409651294 | K15: 0.1386341772 | L15: 0.1497574842 | M15: 0.1554636558 | N15: 0.1663177914 | O15: 0.1485359864 | P15: 0.1498045716 | Q15: 0.1690302504 | R15: 0.1997901287 | S15: 0.1975564266 | T15: 0.1970359918
T36: Zdroj: Státní závěrečný účet ČR; ZÚ - kapitola 333-MŠMT; 700-Obce a DSO, KÚ; ZÚ ostatních resortů; ČSÚ

Sheet GB4
D4: Obr. B4 | G4: Školství celkem – jednotkové výdaje na dítě, žáka, studenta v tis. Kč v letech 2004 až 2013 – podle úrovně vzdělávání
J10: 2003 | K10: 2004 | L10: 2005 | M10: 2006 | N10: 2007 | O10: 2008 | P10: 2009 | Q10: 2010 | R10: 2011 | S10: 2012 | T10: 2013
I11: Předškolní vzdělávání | J11: 32.59742883 | K11: 33.62119329 | L11: 35.73090789 | M11: 38.92416435 | N11: 40.49176745 | O11: 41.97873317 | P11: 44.12281032 | Q11: 42.47667355 | R11: 41.70001458 | S11: 43.10350469 | T11: 42.39821947
I12: Základní vzdělávání | J12: 37.5339884 | K12: 40.57093776 | L12: 42.23669068 | M12: 46.96220461 | N12: 50.36614959 | O12: 52.57237798 | P12: 57.64283096 | Q12: 57.29252579 | R12: 60.34648738 | S12: 60.59396129 | T12: 59.95016927
I13: Střední vzdělávání včetně VOŠ a konzervatoří | J13: 43.68628851 | K13: 44.97225582 | L13: 47.29191614 | M13: 50.51483018 | N13: 53.01837127 | O13: 54.81284436 | P13: 57.2714768 | Q13: 57.01013186 | R13: 59.34048616 | S13: 63.20968806 | T13: 64.19395573
T37: Zdroj: Státní závěrečný účet ČR; ZÚ - kapitola 333-MŠMT; 700-Obce a DSO, KÚ; ZÚ ostatních resortů; ČSÚ

Sheet GB5
D4: Obr. B5 | H4: Školství celkem – průměrné nominální měsíční mzdy v letech 2004 až 2013
K10: 2003 | L10: 2004 | M10: 2005 | N10: 2006 | O10: 2007 | P10: 2008 | Q10: 2009 | R10: 2010 | S10: 2011 | T10: 2012 | U10: 2013
J11: RgŠ – všichni zřizovatelé | K11: 15707.912 | L11: 16698.908 | M11: 17712.68059 | N11: 18787 | O11: 19841.65428 | P11: 20519.08244 | Q11: 21890.62531 | R11: 21457.94822 | S11: 22059.45331 | T11: 22600.39345 | U11: 22736.16042
J12: Veřejné VŠ | K12: 19969.411 | L12: 22226.131 | M12: 25266.82354 | N12: 26991 | O12: 29235.67804 | P12: 30534.658 | Q12: 31781.06606 | R12: 31760.67425 | S12: 32786.53946 | T12: 34045.43059 | U12: 35419.875
J13: CELKEM Česká republika | K13: 17446 | L13: 18583 | M13: 19584 | N13: 20844 | O13: 22384 | P13: 22691 | Q13: 23488 | R13: 23797 | S13: 24436 | T13: 25101 | U13: 25128
J14: Nepodnikatelská sféra | K14: 17692 | L14: 18715 | M14: 19876 | N14: 20975 | O14: 22387 | P14: 23337 | Q14: 24432 | R14: 24265 | S14: 24469 | T14: 25018 | U14: 25251
U36: Zdroj: databáze MŠMT, ČSÚ

Sheet GB6
D4: Obr. B6 | H4: Školství celkem – průměrné reálné měsíční mzdy v letech 2004 až 2013
K10: 2003 | L10: 2004 | M10: 2005 | N10: 2006 | O10: 2007 | P10: 2008 | Q10: 2009 | R10: 2010 | S10: 2011 | T10: 2012 | U10: 2013
J11: RgŠ – všichni zřizovatelé | K11: ='GB5'!K11/'GB6'!K$16*100 -> 16448.07539 | L11: ='GB5'!L11/'GB6'!L$16*100 -> 17022.33231 | M11: ='GB5'!M11/'GB6'!M$16*100 -> 17712.68059 | N11: ='GB5'!N11/'GB6'!N$16*100 -> 18328.78049 | O11: ='GB5'!O11/'GB6'!O$16*100 -> 18825.09893 | P11: ='GB5'!P11/'GB6'!P$16*100 -> 18304.26623 | Q11: ='GB5'!Q11/'GB6'!Q$16*100 -> 19320.94026 | R11: ='GB5'!R11/'GB6'!R$16*100 -> 18675.32482 | S11: ='GB5'!S11/'GB6'!S$16*100 -> 18838.13263 | T11: ='GB5'!T11/'GB6'!T$16*100 -> 18678.01112 | U11: ='GB5'!U11/'GB6'!U$16*100 -> 18529.8781
J12: Veřejné VŠ | K12: ='GB5'!K12/'GB6'!K$16*100 -> 20910.37801 | L12: ='GB5'!L12/'GB6'!L$16*100 -> 22656.60652 | M12: ='GB5'!M12/'GB6'!M$16*100 -> 25266.82354 | N12: ='GB5'!N12/'GB6'!N$16*100 -> 26332.68293 | O12: ='GB5'!O12/'GB6'!O$16*100 -> 27737.83496 | P12: ='GB5'!P12/'GB6'!P$16*100 -> 27238.76717 | Q12: ='GB5'!Q12/'GB6'!Q$16*100 -> 28050.36722 | R12: ='GB5'!R12/'GB6'!R$16*100 -> 27642.01414 | S12: ='GB5'!S12/'GB6'!S$16*100 -> 27998.75274 | T12: ='GB5'!T12/'GB6'!T$16*100 -> 28136.7195 | U12: ='GB5'!U12/'GB6'!U$16*100 -> 28867.05379
J13: CELKEM Česká republika | K13: ='GB5'!K13/'GB6'!K$16*100 -> 18268.06283 | L13: ='GB5'!L13/'GB6'!L$16*100 -> 18942.91539 | M13: ='GB5'!M13/'GB6'!M$16*100 -> 19584 | N13: ='GB5'!N13/'GB6'!N$16*100 -> 20335.60976 | O13: ='GB5'!O13/'GB6'!O$16*100 -> 21237.19165 | P13: ='GB5'!P13/'GB6'!P$16*100 -> 20241.74844 | Q13: ='GB5'!Q13/'GB6'!Q$16*100 -> 20730.80318 | R13: ='GB5'!R13/'GB6'!R$16*100 -> 20711.05309 | S13: ='GB5'!S13/'GB6'!S$16*100 -> 20867.6345 | T13: ='GB5'!T13/'GB6'!T$16*100 -> 20744.6281 | U13: ='GB5'!U13/'GB6'!U$16*100 -> 20479.2176
J14: Nepodnikatelská sféra | K14: ='GB5'!K14/'GB6'!K$16*100 -> 18525.65445 | L14: ='GB5'!L14/'GB6'!L$16*100 -> 19077.47197 | M14: ='GB5'!M14/'GB6'!M$16*100 -> 19876 | N14: ='GB5'!N14/'GB6'!N$16*100 -> 20463.41463 | O14: ='GB5'!O14/'GB6'!O$16*100 -> 21240.03795 | P14: ='GB5'!P14/'GB6'!P$16*100 -> 20818.01963 | Q14: ='GB5'!Q14/'GB6'!Q$16*100 -> 21563.98941 | R14: ='GB5'!R14/'GB6'!R$16*100 -> 21118.36379 | S14: ='GB5'!S14/'GB6'!S$16*100 -> 20895.81554 | T14: ='GB5'!T14/'GB6'!T$16*100 -> 20676.03306 | U14: ='GB5'!U14/'GB6'!U$16*100 -> 20579.4621
K16: 95.5 | L16: 98.1 | M16: 100 | N16: 102.5 | O16: 105.4 | P16: 112.1 | Q16: 113.3 | R16: 114.9 | S16: 117.1 | T16: 121 | U16: 122.7
D30: Komentáře:
E31: Průměrná reálná měsíční mzda ve stálých cenách roku 2005.
U32: Zdroj: databáze MŠMT, ČSÚ
